Workbook

Sheet Introduction
A3: . . . . . . . . . . . . . . . . . . . . . . . . . . . . . . . . . . . . . . . . . . . . . . . . . . . . . . . . . .
A5: Guidelines For Estimating
A6: Beef Backgrounding Costs
A7: ="For Weight Range of "&Input!D14&" - "&Input!D16&" lbs" -> For Weight Range of 500 - 900 lbs
A8: ="Based on "&Input!D12&" Head" -> Based on 500 Head
H11: Date: | J11: September, 2025
B15: This guide is designed to provide you with planning information and a format for calculating costs of production of a backgrounding feeder calf enterprise in Manitoba. General Manitoba Agriculture recommendations are assumed in using feed and veterinary inputs. These figures provide an economic evaluation of the livestock and estimated prices required to cover all costs. Costs include labour, investment and depreciation, but do not include management costs, nor do they necessarily represent the average cost of production in Manitoba.
B22: Backgrounding generally refers to the feeding of calves from weaning until they are put onto a high concentrate finishing ration. An example of a typical backgrounding operation would be, feed 500 pound steers to gain 1.5 to 2.5 pounds per day for approximately 100-200 days to produce 800 to 900 pound backgrounded feeders.
B28: These budgets may be adjusted by putting in your own figures. As a producer you are encouraged to calculate your own costs of production. Good management is assumed in that a balanced ration is being fed, livestock are on a herd health program and handling facilities are included.
B34: This tool is available as an Excel worksheet at:
B42: is also available to help
B43: determine machinery costs.
B45: Note: This budget is only a guide and is not intended as an in-depth study of the cost of production of this industry. Interpretation and use of this information is the responsibility of the user. If you need help with a budget, contact a Farm Management Specialist.

Sheet Summary
A1: ="Backgrounding Cattle Production Cost Summary - "&Introduction!J11 -> Backgrounding Cattle Production Cost Summary - September, 2025
A2: ="Based on "&Input!D12&" feeders, weight range "&Input!D14&" to "&Input!D16&" lbs, "&Input!C24&" ration @ "&Input!D23&" lbs. ADG" -> Based on 500 feeders, weight range 500 to 900 lbs, Corn Silage ration @ 2.5 lbs. ADG
A4: A. Operating Costs | F4: Cost/Head | H4: Total Cost | J4: Your Cost
A5: 1. Feed Costs
A6: =" 1.01 "&Input!A28&" ("&Input!G28*100&" % TDN, "&Input!H28*100&" % CP)" -> 1.01 Alfalfa Grass Hay (57.8 % TDN, 13.7 % CP) | F6: =Input!F28 -> 48 | H6: =IF(Input!$C$24="Barley Silage",'Feed Rations'!$L9,IF(Input!$C$24="Corn Silage",'Feed Rations'!L27,'Feed Rations'!L45)) -> 24000
A7: =" 1.02 "&Input!A29&" ("&Input!G29*100&" % TDN, "&Input!H29*100&" % CP)" -> 1.02 Corn Silage (65.2 % TDN, 8.7 % CP) | F7: =Input!F29 -> 79.8 | H7: =IF(Input!$C$24="Barley Silage",'Feed Rations'!$L10,IF(Input!$C$24="Corn Silage",'Feed Rations'!L28,'Feed Rations'!L46)) -> 39920
A8: =" 1.03 "&Input!A30&" ("&Input!G30*100&" % TDN, "&Input!H30*100&" % CP)" -> 1.03 Barley Silage (63 % TDN, 11 % CP) | F8: =Input!F30 -> 0 | H8: =IF(Input!$C$24="Barley Silage",'Feed Rations'!$L11,IF(Input!$C$24="Corn Silage",'Feed Rations'!L29,'Feed Rations'!L47)) -> 0
A9: =" 1.04 "&Input!A31&" ("&Input!G31*100&" % TDN, "&Input!H31*100&" % CP)" -> 1.04 Barley Grain (83.1 % TDN, 12.5 % CP) | F9: =Input!F31 -> 77.08 | H9: =IF(Input!$C$24="Barley Silage",'Feed Rations'!$L12,IF(Input!$C$24="Corn Silage",'Feed Rations'!L30,'Feed Rations'!L48)) -> 38439
A10: =" 1.05 "&Input!A32 -> 1.05 Greenfeed | F10: =Input!F32 -> 0 | H10: =IF(Input!$C$24="Barley Silage",'Feed Rations'!$L13,IF(Input!$C$24="Corn Silage",'Feed Rations'!L31,'Feed Rations'!L49)) -> 0
A11: =" 1.06 "&Input!A33 -> 1.06 Straw | F11: =Input!F33 -> 0 | H11: =IF(Input!$C$24="Barley Silage",'Feed Rations'!$L14,IF(Input!$C$24="Corn Silage",'Feed Rations'!L32,'Feed Rations'!L50)) -> 0
A12: =" 1.07 "&Input!A34&" ("&ROUND(Input!G34*100,1)&"%TDN, "&Input!H34*100&"%CP)" -> 1.07 32-20% Feedlot Suppl. (61.7%TDN, 35.6%CP) | F12: =Input!F34 -> 0 | H12: =IF(Input!$C$24="Barley Silage",'Feed Rations'!$L15,IF(Input!$C$24="Corn Silage",'Feed Rations'!L33,'Feed Rations'!L51)) -> 0
A13: =" 1.08 "&Input!A35&" ("&Input!G35*100&" % TDN, "&Input!H35*100&" % CP)" -> 1.08 DDGS Corn/Wheat (77 % TDN, 33.9 % CP) | F13: =Input!F35 -> 14.69 | H13: =IF(Input!$C$24="Barley Silage",'Feed Rations'!$L16,IF(Input!$C$24="Corn Silage",'Feed Rations'!L34,'Feed Rations'!L52)) -> 7500
A14: =" 1.09 "&Input!A36 -> 1.09 1:1 Premix | F14: =Input!F36 -> 0 | H14: =IF(Input!$C$24="Barley Silage",'Feed Rations'!$L17,IF(Input!$C$24="Corn Silage",'Feed Rations'!L35,'Feed Rations'!L53)) -> 0
A15: =" 1.10 "&Input!A37 -> 1.10 2:1 Premix | F15: =Input!F37 -> 40.91 | H15: =IF(Input!$C$24="Barley Silage",'Feed Rations'!$L18,IF(Input!$C$24="Corn Silage",'Feed Rations'!L36,'Feed Rations'!L54)) -> 20500
A16: =" 1.11 "&Input!A38 -> 1.11 Limestone | F16: =Input!F38 -> 5.1 | H16: =IF(Input!$C$24="Barley Silage",'Feed Rations'!$L19,IF(Input!$C$24="Corn Silage",'Feed Rations'!L37,'Feed Rations'!L55)) -> 2560
A17: =" 1.12 "&Input!A39 -> 1.12 Other | F17: =Input!F39 -> 0 | H17: =IF(Input!$C$24="Barley Silage",'Feed Rations'!$L20,IF(Input!$C$24="Corn Silage",'Feed Rations'!L38,'Feed Rations'!L56)) -> 0
A18: Total Feed Costs | F18: =SUM(F6:F16) -> 265.58 | H18: =SUM(H6:H16) -> 132919
A19: 2. Other Operating Costs
A20: 2.01 Feeder Cost | F20: =Input!D71 -> 3415.25 | H20: =ROUND(F20*Input!$D$12,0) -> 1707625
A21: 2.02 Straw | F21: =Input!D76 -> 22.4 | H21: =ROUND(F21*Input!$D$12,0) -> 11200 | N21: =F21 -> 22.4 | O21: straw
A22: 2.03 Veterinary Medicine & Supplies | F22: =Input!D97 -> 26.24 | H22: =ROUND(F22*Input!$D$12,0) -> 13120 | N22: =Input!D163 -> 1.54 | O22: building ins
A23: 2.04 Annual Fuel & Repair Costs | F23: =SUM(Input!D109+Input!D115+Input!D121) -> 10.05938 | H23: =ROUND(F23*Input!$D$12,0) -> 5030 | N23: =F23 -> 10.05938 | O23: fuel and repair
A24: 2.05 Utilities | F24: =Input!D129 -> 3.4548624 | H24: =ROUND(F24*Input!$D$12,0) -> 1727 | N24: =F24 -> 3.4548624 | O24: utili
A25: 2.06 Feeder Selling Cost | F25: =Input!D148 -> 36.95 | H25: =ROUND(F25*Input!$D$12,0) -> 18475
A26: 2.07 Insurance | F26: =Input!D174 -> 1.64 | H26: =ROUND(F26*Input!$D$12,0) -> 820
A27: 2.08 Manure Removal | F27: =Input!D156 -> 18.83448 | H27: =ROUND(F27*Input!$D$12,0) -> 9417 | N27: =F27 -> 18.83448 | O27: manure
A28: 2.09 Barn & Office Supplies | F28: =Input!D179 -> 1.2 | H28: =ROUND(F28*Input!$D$12,0) -> 600 | N28: =Fixed!D13 -> 7.2 | O28: building dep
A29: 2.10 Death Loss | F29: =Input!D187 -> 71.8 | H29: =ROUND(F29*Input!$D$12,0) -> 35900 | N29: =Fixed!I13 -> 18 | O29: mach dep
A30: Subtotal Operating Costs | F30: =ROUND(SUM(F18:F29),2) -> 3873.41 | H30: =SUM(H18:H29) -> 1936833 | N30: =Fixed!D12 -> 4.337519772 | O30: building inv
A31: 2.11 Operating Interest | F31: =Input!D196 -> 107.83 | H31: =ROUND(F31*Input!$D$12,0) -> 53915 | N31: =Fixed!I12 -> 8.132849573 | O31: mach inv
A32: Total Operating Costs | F32: =F30+F31 -> 3981.24 | H32: =H30+H31 -> 1990748 | N32: =SUM(F21:F29)*(Input!D193/100)*(Input!B50/365) -> 5.698219731 | O32: op interest
A33: B. Fixed Costs | N33: =F28 -> 1.2 | O33: misc
B34: Buildings | F34: =Fixed!D15 -> 11.53751977 | H34: =ROUND(F34*Input!$D$12,0) -> 5769 | N34: =F39 -> 28 | O34: labour
B35: Machinery & Equipment | F35: =Fixed!I15 -> 26.13284957 | H35: =ROUND(F35*Input!$D$12,0) -> 13066 | N35: =SUM(N21:N34) -> 128.8573115
B36: Total Fixed Costs | F36: =SUM(F34:F35) -> 37.67036935 | H36: =SUM(H34:H35) -> 18835 | N36: =N35/Input!B50 -> 0.8053581967 | O36: yardage per day
A37: Total Operating and Fixed Costs | F37: =SUM(F32+F36) -> 4018.910369 | H37: =H32+H36 -> 2009583
A39: C. Owners - Labour & Living | F39: =Input!D203 -> 28 | H39: =F39*Input!D12 -> 14000
A40: Total Cost of Production | F40: =F37+F39 -> 4046.910369 | H40: =H37+H39 -> 2023583
D42: Profitability and Breakeven Analysis
A44: Estimated Farmgate | F44: Per Head | H44: Total
A45: =" Gross Revenue @ $"&Input!D17&"/cwt market price" -> Gross Revenue @ $455/cwt market price | F45: =Breakeven!F48 -> 3972.15 | H45: =ROUND(F45*Input!D12,0) -> 1986075
F48: Breakeven Purchase | H48: Breakeven Selling
F49: Price ($/cwt) @ | H49: Price ($/cwt) @
F50: ="$"&Input!D17&"/cwt market price" -> $455/cwt market price | H50: ="$"&Input!D15&"/cwt feeder price" -> $680/cwt feeder price
A51: Operating Costs | F51: =Breakeven!F51*100 -> 678.182 | H51: =Breakeven!F31*100 -> 456.0412371
A52: Operating Costs & Labour | F52: =Breakeven!F58*100 -> 672.582 | H52: =Breakeven!F35*100 -> 459.2485682
A53: Operating & Fixed Costs | F53: =Breakeven!F65*100 -> 670.6479261 | H53: =Breakeven!F39*100 -> 460.3562851
A54: Total Costs | F54: =Breakeven!F72*100 -> 665.0479261 | H54: =Breakeven!F43*100 -> 463.5636162
F56: Cost per lb of | H56: Marginal Returns per head
F57: gain sold ($/cwt) | H57: ="@ $"&Input!D17&"/cwt market price" -> @ $455/cwt market price
A58: Feed Costs | F58: =Breakeven!F7*100 -> 71.20107239 | H58: =F45-F20-F18 -> 291.32
A59: Operating Costs | F59: =Breakeven!F12*100 -> 155.8284182 | H59: =Breakeven!F48-F32 -> -9.09
A60: Operating Costs & Labour | F60: =Breakeven!F17*100 -> 163.3351206 | H60: =Breakeven!F55-(F32+F39) -> -37.09
A61: Operating & Fixed Costs | F61: =Breakeven!F22*100 -> 165.927713 | H61: =Breakeven!F62-(F32+F36) -> -46.76036935
A62: Total Costs | F62: =Breakeven!F27*100 -> 173.4344154 | H62: =Breakeven!F69-F40 -> -74.76036935
A64: ="Yardage per Feeder per Day (based on "&Input!B50&" days)" -> Yardage per Feeder per Day (based on 160 days) | F64: =(F21+Input!D163+F23+F24+F27+Fixed!D13+Fixed!I13+Fixed!D12+Fixed!I12+F28+F39+(SUM(F21:F29)*(Input!D193/100)*(Input!B50/365)))/Input!B50 -> 0.8053581967
A65: Return on Investment (ROI) | F65: =(F45-F40)/F40 -> -0.01847344332
A66: Estimated Return on Asset (ROA) | F66: =((F45-F32-F39-Fixed!D13-Fixed!I13)/(Fixed!D19/Input!D12)) -> -0.1617082035
A68: Note: This budget is only a guide and is not intended as an in-depth study of the cost of production of this industry. Interpretation and utilization of this information is the responsibility of the user. No liability for decisions based on this publication is assumed.

Sheet Risk Analysis
A1: Risk & Sensitivity Analysis (Stress Test)
A2: A. Operating Costs | E2: ***HIDE***
B3: Feed cost | C3: =Summary!F18 -> 265.58
B4: Feeder Cost | C4: =Summary!F20 -> 3415.25
B5: Other Operating Costs | C5: =SUM(Summary!F32-Summary!F20-Summary!F18) -> 300.41
B6: Subtotal | C6: =SUM(C3:C5) -> 3981.24
A7: B. Fixed Costs | C7: =Summary!F36 -> 37.67036935
A8: C. Labour | C8: =Summary!F39 -> 28
A9: Total Costs | C9: =SUM(C6:C8) -> 4046.910369
A11: Estimated Farmgate
B12: Price ($ per cwt) | C12: =Input!D17 -> 455
B15: Percent Market Price Change | C15: -0.1
B16: Percent Feed Cost Change | C16: 0.05
B17: Percent Feeder Cost Change | C17: 0.05
C20: Per Head
B21: Market Price ($ per cwt) | C21: =SUM(C12*(1+C15)) -> 409.5
B22: Feed Cost | C22: =SUM(C3+(C3*C16)) -> 278.859
B23: Feeder Cost | C23: =SUM(C4+(C4*C17)) -> 3586.0125
A25: ="Stress Test Scenario = Market Price "&IF(C15<0,"Down","Up")&" "&ABS(C15*100)&"%, Feed Price "&IF(C16<0,"Down","Up")&" "&ABS(C16*100)&"% and Feeder Cost "&IF(C17<0,"Down","Up")&" "&ABS(C17*100)&"%" -> Stress Test Scenario = Market Price Down 10%, Feed Price Up 5% and Feeder Cost Up 5%
B26: Operating Costs | C26: =SUM(C5+C22+C23) -> 4165.2815
B27: Total Costs | C27: =C7+C8+C26 -> 4230.951869
B28: Gross Revenue / feeder | C28: =(Breakeven!F46/100)*'Risk Analysis'!C21 -> 3574.935
B29: Marginal Returns
B30: Over Operating Costs | C30: =SUM(C28-C26) -> -590.3465
B31: Over Operating & Labour Costs | C31: =SUM(C28-C26-C8) -> -618.3465
B32: Over Total Costs (Net Profit) | C32: =SUM(C28-C27) -> -656.0168693
B34: Operating Expense Ratio | C34: =SUM(C26/C28) -> 1.165134891
A36: Estimated Breakeven Canadian Dollar Analysis
C38: ="Est. Market Price ($/cwt Cdn) @ "&TEXT(Input!D18,"0.0000")&" Cdn per USD" -> Est. Market Price ($/cwt Cdn) @ 0.7300 Cdn per USD
C39: =SUM($E$39-10) -> 445 | D39: =SUM($E$39-5) -> 450 | E39: =Input!D17 -> 455 | F39: =SUM($E$39+5) -> 460 | G39: =SUM($E$39+10) -> 465
A40: Breakeven CDN Dollar ($1 Cdn = $ USD)
B41: Operating Costs | C41: =SUM((C39/100)*Breakeven!$F$46*Input!$D$18)/Summary!$F$32 -> 0.7123259336 | D41: =SUM((D39/100)*Breakeven!$F$46*Input!$D$18)/Summary!$F$32 -> 0.7203295958 | E41: =SUM((E39/100)*Breakeven!$F$46*Input!$D$18)/Summary!$F$32 -> 0.728333258 | F41: =SUM((F39/100)*Breakeven!$F$46*Input!$D$18)/Summary!$F$32 -> 0.7363369202 | G41: =SUM((G39/100)*Breakeven!$F$46*Input!$D$18)/Summary!$F$32 -> 0.7443405823
B42: Operating & Labour Costs | C42: =SUM((C39/100)*Breakeven!$F$46*Input!$D$18)/(Summary!$F$32+Summary!$F$39) -> 0.7073511439 | D42: =SUM((D39/100)*Breakeven!$F$46*Input!$D$18)/(Summary!$F$32+Summary!$F$39) -> 0.7152989095 | E42: =SUM((E39/100)*Breakeven!$F$46*Input!$D$18)/(Summary!$F$32+Summary!$F$39) -> 0.7232466752 | F42: =SUM((F39/100)*Breakeven!$F$46*Input!$D$18)/(Summary!$F$32+Summary!$F$39) -> 0.7311944408 | G42: =SUM((G39/100)*Breakeven!$F$46*Input!$D$18)/(Summary!$F$32+Summary!$F$39) -> 0.7391422065
B43: Operating, Fixed & Labour Costs | C43: =SUM((C39/100)*Breakeven!$F$46*Input!$D$18)/Summary!$F$40 -> 0.7007668174 | D43: =SUM((D39/100)*Breakeven!$F$46*Input!$D$18)/Summary!$F$40 -> 0.7086406019 | E43: =SUM((E39/100)*Breakeven!$F$46*Input!$D$18)/Summary!$F$40 -> 0.7165143864 | F43: =SUM((F39/100)*Breakeven!$F$46*Input!$D$18)/Summary!$F$40 -> 0.7243881708 | G43: =SUM((G39/100)*Breakeven!$F$46*Input!$D$18)/Summary!$F$40 -> 0.7322619553
A45: ="Breakeven Canadian Dollar = (Est. Market Price ($/lb) x Shrunk Wt. (lbs) x $ Cdn per USD) / Cost" -> Breakeven Canadian Dollar = (Est. Market Price ($/lb) x Shrunk Wt. (lbs) x $ Cdn per USD) / Cost
A46: =" (eg. ($"&TEXT(E39/100,"0.00")&" x "&ROUND(Breakeven!F46,0)&" lbs x $"&TEXT(Input!D18,"0.0000")&") / $"&TEXT(Summary!F40,"0.00")&") = $"&TEXT(E43,"0.0000") -> (eg. ($4.55 x 873 lbs x $0.7300) / $4046.91) = $0.7165
A48: Note: This budget is only a guide and is not intended as an in depth study of the cost of production of this industry. Interpretation and utilization of this information is the responsibility of the user.

Sheet Charts

Sheet Input
A1: Backgrounding Feeder Cattle Production Costs | J1: HIDE
A3: Assumptions
A4: 1. This budget outlines the cost of production for backgrounding cattle.
A5: 2. Buildings and equipment are valued at new cost.
A6: 3. All feed is purchased.
A10: Herd Profile
A12: Number of Feeders Purchased | D12: 500 | E12: head
A13: Feeder Cattle Mortality Rate | D13: 2 | E13: %
A14: Feeder Purchased Weight | D14: 500 | E14: lbs
A15: Feeder Cattle Price | D15: 680 | E15: /cwt
A16: Finish Weight (Maximum 900 lbs.) | D16: 900 | E16: lbs
A17: Feeder Selling Price (WLPIP insured value) | D17: 455 | E17: /cwt
A18: $1 Canadian Dollar | C18: ="($"&TEXT(1/D18,"#.####")&" CDN )" -> ($1.3699 CDN ) | D18: 0.73 | E18: / $1 USD
A19: WLPIP Insurance Premium | D19: 0 | E19: /cwt
A20: Percent Shrink at Sale | D20: 3 | E20: %
A21: Percent Shrink Feeder | D21: 0 | E21: % | G21: ****HIDE****
A23: Average Daily Gain | D23: 2.5 | E23: lbs/day | J23: ='Ration Data'!C2 -> 1.5 | K23: ='Ration Data'!K2 -> 2 | L23: ='Ration Data'!S2 -> 2.5
A24: Type of Feed Ration | C24: Corn Silage | J24: Barley Silage | K24: Corn Silage | L24: Alfalfa Grass Hay
H26: (Analysis Assumed)
A27: Feed Costs | B27: $/unit | C27: lbs/Unit | D27: $/lb | E27: lbs/feeder | F27: $/feeder | G27: TDN | H27: CP
A28: Alfalfa Grass Hay | B28: 120 | C28: 2000 | D28: =ROUND(B28/C28,3) -> 0.06 | E28: =IF(Input!$C$24="Barley Silage",'Feed Rations'!I9,IF(Input!$C$24="Corn Silage",'Feed Rations'!I27,'Feed Rations'!I45)) -> 800 | F28: =ROUND(D28*E28,2) -> 48 | G28: 0.578 | H28: 0.137
A29: Corn Silage | B29: 40 | C29: 2000 | D29: =ROUND(B29/C29,3) -> 0.02 | E29: =IF(Input!$C$24="Barley Silage",'Feed Rations'!I10,IF(Input!$C$24="Corn Silage",'Feed Rations'!I28,'Feed Rations'!I46)) -> 3990 | F29: =ROUND(D29*E29,2) -> 79.8 | G29: 0.652 | H29: 0.087
A30: Barley Silage | B30: 50 | C30: 2000 | D30: 0.025 | E30: =IF(Input!$C$24="Barley Silage",'Feed Rations'!I11,IF(Input!$C$24="Corn Silage",'Feed Rations'!I29,'Feed Rations'!I47)) -> 0 | F30: 0 | G30: 0.63 | H30: 0.11
A31: Barley Grain | B31: 4.5 | C31: 48 | D31: 0.094 | E31: =IF(Input!$C$24="Barley Silage",'Feed Rations'!I12,IF(Input!$C$24="Corn Silage",'Feed Rations'!I30,'Feed Rations'!I48)) -> 820 | F31: 77.08 | G31: 0.831 | H31: 0.125
A32: Greenfeed | B32: 115 | C32: 2000 | D32: =ROUND(B32/C32,3) -> 0.058 | E32: =IF(Input!$C$24="Barley Silage",'Feed Rations'!I13,IF(Input!$C$24="Corn Silage",'Feed Rations'!I31,'Feed Rations'!I49)) -> 0 | F32: 0
A33: Straw | B33: 70 | C33: 2000 | D33: =ROUND(B33/C33,3) -> 0.035 | E33: =IF(Input!$C$24="Barley Silage",'Feed Rations'!I14,IF(Input!$C$24="Corn Silage",'Feed Rations'!I32,'Feed Rations'!I50)) -> 0 | F33: 0
A34: 32-20% Feedlot Suppl. | B34: 600 | C34: 2205 | D34: 0.272 | E34: =IF(Input!$C$24="Barley Silage",'Feed Rations'!I15,IF(Input!$C$24="Corn Silage",'Feed Rations'!I33,'Feed Rations'!I51)) -> 0 | F34: 0 | G34: 0.6165 | H34: 0.356
A35: DDGS Corn/Wheat | B35: 250 | C35: 2205 | D35: 0.113 | E35: =IF(Input!$C$24="Barley Silage",'Feed Rations'!I16,IF(Input!$C$24="Corn Silage",'Feed Rations'!I34,'Feed Rations'!I52)) -> 130 | F35: 14.69 | G35: 0.77 | H35: 0.339
A36: 1:1 Premix | B36: 50 | C36: 55 | D36: 0.909 | E36: =IF(Input!$C$24="Barley Silage",'Feed Rations'!I17,IF(Input!$C$24="Corn Silage",'Feed Rations'!I35,'Feed Rations'!I53)) -> 0 | F36: 0
A37: 2:1 Premix | B37: 50 | C37: 55 | D37: 0.909 | E37: =IF(Input!$C$24="Barley Silage",'Feed Rations'!I18,IF(Input!$C$24="Corn Silage",'Feed Rations'!I36,'Feed Rations'!I54)) -> 45 | F37: 40.91
A38: Limestone | B38: 20 | C38: 55 | D38: 0.364 | E38: =IF(Input!$C$24="Barley Silage",'Feed Rations'!I19,IF(Input!$C$24="Corn Silage",'Feed Rations'!I37,'Feed Rations'!I55)) -> 14 | F38: 5.1
A39: Other | B39: 0 | C39: 2000 | D39: =ROUND(B39/C39,3) -> 0 | E39: =IF(Input!$C$24="Barley Silage",'Feed Rations'!I20,IF(Input!$C$24="Corn Silage",'Feed Rations'!I38,'Feed Rations'!I56)) -> 0 | F39: 0
F40: =SUM(F28:F39) -> 265.58
A41: FOOTNOTE: 1 bushel (bu) barley = 48 lbs = 21.8 kg
A42: 1 kilogram (kg) = 2.2046 pounds (lbs)
A43: 1 tonne (t) = 1,000 kg
D44: Feed Cost
A45: Weight Range | B45: Days on Feed | D45: $/Steer/Day
A46: 500 to 600 lbs. | B46: =ROUND(IF(SUM((600-D14))<=0,0,IF(D16<=600,SUM((D16-D14)/D23),SUM(600-D14)/D23)),0) -> 40 | D46: =IF(B46>0,IF(Input!$C$24="Barley Silage",'Feed Rations'!E$21,IF(Input!$C$24="Corn Silage",'Feed Rations'!E$39,'Feed Rations'!E$57)),0) -> 1.41991
A47: 600 to 700 lbs. | B47: =ROUND(IF(D16<600,0,IF(SUM(700-D14)<=0,0,IF(D14>=600,IF(D16>=700,SUM((700-D14)/D23),SUM(D16-D14)/D23),IF(D16>=700,SUM(100/D23),SUM(D16-600)/D23)))),0) -> 40 | D47: =IF(B47>0,IF(Input!$C$24="Barley Silage",'Feed Rations'!F$21,IF(Input!$C$24="Corn Silage",'Feed Rations'!F$39,'Feed Rations'!F$57)),0) -> 1.61028
A48: 700 to 800 lbs. | B48: =ROUND(IF(D16<700,0,IF(SUM(800-D14)<=0,0,IF(D14>=700,IF(D16>=800,SUM((800-D14)/D23),SUM(D16-D14)/D23),IF(D16>=800,SUM(100/D23),SUM(D16-700)/D23)))),0) -> 40 | D48: =IF(B48>0,IF(Input!$C$24="Barley Silage",'Feed Rations'!G$21,IF(Input!$C$24="Corn Silage",'Feed Rations'!G$39,'Feed Rations'!G$57)),0) -> 1.733575
A49: 800 to 900 lbs. | B49: =ROUND(IF(D16<800,0,IF(D14>=800,IF(D16>=900,SUM((900-D14)/D23),SUM(D16-D14)/D23),IF(D16>=900,SUM(100/D23),SUM(D16-800)/D23))),0) -> 40 | D49: =IF(B49>0,IF(Input!$C$24="Barley Silage",'Feed Rations'!H$21,IF(Input!$C$24="Corn Silage",'Feed Rations'!H$39,'Feed Rations'!H$57)),0) -> 1.880055
A50: TOTAL | B50: =SUM(B46:B49,0) -> 160
A52: Total Feed Cost per Steer | D52: =IF(B50>0,IF(Input!$C$24="Barley Silage",'Feed Rations'!J21,IF(Input!$C$24="Corn Silage",'Feed Rations'!J39,'Feed Rations'!J57)),0) -> 265.571 | E52: /feeder
A53: Average Feed Cost per Day | D53: =SUM(D52/B50) -> 1.65981875
A54: Feed Cost per lb. of Gain Sold (shrunk weight) | D54: =(D52/ROUND((Input!$D$16-(Input!$D$16*Input!$D$20/100))-(Input!$D$14-(Input!$D$14*Input!$D$21/100)),0)) -> 0.7119865952
A56: Total Pounds of Gain | D56: =ROUND(D16-D14,0) -> 400 | E56: lbs
A57: Total Pounds of Gain (Shrunk Weight) | D57: =ROUND((Input!$D$16-(Input!$D$16*Input!$D$20/100))-(Input!$D$14-(Input!$D$14*Input!$D$21/100)),0) -> 373 | E57: lbs
A59: Other Operating Costs
A60: Feeder Purchase Costs
A61: Feeder | D61: =D14 -> 500 | E61: lbs/feeder
C62: x | D62: =D15 -> 680 | E62: /cwt
C63: ÷ | D63: 100 | E63: lbs/cwt
C64: = | D64: =ROUND(D61/100*D62,2) -> 3400 | E64: /feeder
A65: Buying Commission | C65: + | D65: 5 | E65: /feeder
A66: Insurance fee | C66: + | D66: 1.75 | E66: /feeder
A67: Trucking-in | D67: 1.7 | E67: /cwt
C68: x | D68: =D14 -> 500 | E68: lbs/feeder
C69: ÷ | D69: 100 | E69: lbs/cwt
C70: = | D70: =ROUND(D67*D68/D69,2) -> 8.5 | E70: /feeder
B71: Total | C71: = | D71: =ROUND(D70+D66+D65+D64,2) -> 3415.25 | E71: /feeder
A73: Straw Bedding | C73: = | D73: 4 | E73: lbs/feeder/day
C74: x | D74: =Input!B50 -> 160 | E74: days on feed
C75: x | D75: 70 | E75: /ton
C76: = | D76: =ROUND((D73*D74)*(D75/2000),2) -> 22.4 | E76: /feeder
A77: Veterinary Medicine & Supplies
A78: Cattle Medication
A79: IBR,BVD,PI3,BRSV, Pasteurella | D79: 5 | E79: /feeder
A80: Vitamin A-D | C80: + | D80: 0.5 | E80: /feeder
A81: External & Internal Parasites | C81: + | D81: 0.72 | E81: /feeder
A82: Blackleg & Haemophilus | C82: + | D82: 1.26 | E82: /feeder
A83: Growth Implants | C83: + | D83: 2 | E83: /feeder
A84: Antibiotics | C84: + | D84: 15 | E84: /feeder
C85: = | D85: =SUM(D79:D84) -> 24.48 | E85: /feeder
A86: Herd Health Program
A87: Professional Services | D87: 240 | E87: /hour charge
C88: x | D88: 3 | E88: Total Yearly Hours
C89: ÷ | D89: =Input!D12 -> 500 | E89: feeder cattle
C90: = | D90: =ROUND(D87*D88/D89,2) -> 1.44 | E90: /feeder
A92: Transportation | D92: 1 | E92: Rate/km charge
C93: x | D93: 80 | E93: Total Kilometres (round trip)
C94: x | D94: 2 | E94: Number of Yearly Visits
C95: ÷ | D95: =Input!D12 -> 500 | E95: feeder cattle
C96: = | D96: =ROUND(D92*D93*D94/D95,2) -> 0.32 | E96: /feeder
B97: Total | C97: = | D97: =ROUND(D96+D90+D85,2) -> 26.24 | E97: /feeder
A99: Fuel, Oil, Repairs & Maintenance
A100: Machinery Fuel Cost
A101: Tractor with Loader PTO hp | D101: 120
A102: Average HP required | C102: ÷ | D102: 2.5
A103: Litres fuel / Hour / HP | C103: x | D103: 0.1665576
A104: Tractor Hours Per Day (avg) | C104: x | D104: 1.5
A105: Diesel Fuel Cost / litre | C105: x | D105: 1.2
A106: Days on feed | C106: x | D106: =B50 -> 160
A107: Annual fuel cost | D107: =IF(D106="ERROR","ERROR",ROUND(((D101/D102)*D103*D104*D105*D106),2)) -> 2302.49
C108: ÷ | D108: =D12 -> 500 | E108: feeders
B109: Total | C109: = | D109: =IF(D106="ERROR","ERROR",SUM(D107/D108)) -> 4.60498 | E109: /feeder
A110: Machinery repair & maintenance
A111: Machinery capital cost | D111: =SUM(Fixed!J24:J39) -> 112500
A112: Machinery Repair (% of investment cost) | C112: x | D112: 1.2 | E112: %
A113: Oil, repairs & maintenance | C113: = | D113: =SUM(D111*(D112/100)) -> 1350
C114: ÷ | D114: =D12 -> 500 | E114: feeders
B115: Total | C115: = | D115: =SUM(D113/D114) -> 2.7 | E115: /feeder
A116: Building repair & maintenance
A117: Building capital cost | D117: =SUM(Fixed!E24:E39)-Fixed!E33 -> 62600
A118: Building maintenance (% of inv.cost) | C118: x | D118: 2.2
A119: Repairs & maintenance | C119: = | D119: =SUM(D117*(D118/100)) -> 1377.2
C120: ÷ | D120: =D12 -> 500 | E120: feeders
B121: Total | C121: = | D121: =SUM(D119/D120) -> 2.7544 | E121: /feeder
A122: Utilities
A123: Hydro - Rate | D123: 0.09587 | E123: / kWh
A124: 12 | B124: kWh per feeder | D124: =SUM(A124*D12*D123) -> 575.22
A125: 2 | B125: 1000 watt waterer | D125: =SUM(A125*18)*(B50)*D123 -> 552.2112
C126: Total Hydro | D126: =SUM(D124:D125) -> 1127.4312
A127: Telephone | D127: 600
C128: ÷ | D128: =D12 -> 500 | E128: feeders
B129: Total | C129: = | D129: =SUM(D126+D127)/D128 -> 3.4548624 | E129: /feeder
A131: Feeder Selling Cost
A132: Trucking Cost
B133: Trucking Distance | D133: 75 | E133: miles
B134: Rate | D134: 7 | E134: /loaded mile
D135: =Input!D12-((Input!D13/100)*Input!D12) -> 490 | E135: feeders
B136: Average Weight | D136: =D16 -> 900 | E136: lbs/head
B137: Truck Capacity | D137: 54000 | E137: lbs/load
B138: Number of head | D138: =D137/D136 -> 60 | E138: per load
C139: = | D139: =ROUNDUP((D135)/D138,0) -> 9 | E139: loads
C140: ÷ | D140: =Input!D12 -> 500 | E140: feeders
C141: = | D141: =SUM(D139*D134*D133)/D140 -> 9.45 | E141: /feeder
A143: Marketing Cost
B144: MBP/NCO Levy | D144: 5.5 | E144: /feeder
B145: LPI Insurance Premium | D145: =Input!D19*Breakeven!F30/100 -> 0 | E145: /feeder
B146: Commission on Sales | D146: 22 | E146: /feeder
D147: =D144+D145+D146 -> 27.5 | E147: /feeder
B148: Total | C148: = | D148: =SUM(D141+D147) -> 36.95 | E148: /feeder
A149: Manure Removal
B150: Days on Feed | C150: = | D150: =B50 -> 160 | E150: days
B151: Manure volume produced | C151: x | D151: 0.024 | E151: m3/feeder/day
C152: = | D152: =IF(D150="ERROR","ERROR",SUM(D150*D151)) -> 3.84 | E152: m3 manure volume
B153: Manure volume shrinkage | C153: x | D153: 75 | E153: % volume shrink
C154: x | D154: 1.30795 | E154: yd3 per m3
B155: Cost for manure removal & application | C155: x | D155: 15 | E155: yd3 manure removal cost
B156: Total | C156: = | D156: =IF(D150="ERROR","ERROR",SUM(D152*(1-(D153/100))*D154*D155)) -> 18.83448 | E156: /feeder
A158: Insurance
A159: Building & Equipment Capital Invested | C159: = | D159: =Fixed!D19 -> 192600
A160: Insurance Cost per $100 | C160: x | D160: 0.4 | E160: $/$100
C161: ÷ | D161: 100
C162: ÷ | D162: =Input!D12 -> 500 | E162: feeder cattle
C163: = | D163: =ROUND(D159*D160/D161/D162,2) -> 1.54 | E163: /feeder
A165: Livestock Capital Invested | C165: = | D165: =ROUND((((Input!D14*Input!D15/100)+(Input!D16*Input!D17/100))/2)*Input!D12,2) -> 1873750 | E165: herd investment
A166: Insurance Cost per $100 | C166: x | D166: 0 | E166: $/$100
C167: ÷ | D167: 100
C168: ÷ | D168: =Input!D12 -> 500 | E168: feeder cattle
C169: = | D169: =ROUND(D165*D166/D167/D168,2) -> 0 | E169: /feeder
A171: Additional Coverage for Liability | D171: 49
C172: ÷ | D172: =Input!D12 -> 500 | E172: feeder cattle
C173: = | D173: =D171/D172 -> 0.098 | E173: /feeder
B174: Total | C174: = | D174: =ROUND(D163+D169+D173,2) -> 1.64 | E174: /feeder
A176: Barn & Office Supplies
A177: Total yearly expense relating to barn | D177: 600
C178: ÷ | D178: =Input!D12 -> 500 | E178: feeder cattle
B179: Total | C179: = | D179: =D177/D178 -> 1.2 | E179: /feeder
A181: Death Loss
D182: =D71 -> 3415.25 | E182: feeder cattle cost
C183: + | D183: =SUM(Summary!F18:F28) -> 3801.608722 | E183: maximum value
C184: - | D184: =Summary!F25 -> 36.95 | E184: selling costs
C185: ÷ | D185: 2 | E185: average
C186: x | D186: =D13 -> 2 | E186: % mortality rate
B187: Total | C187: = | D187: =ROUND(((D182+(D183-D184))/D185)*D186/100,2) -> 71.8 | E187: /feeder
A189: Operating Interest
A190: (Operating interest is charged on one half the subtotal operating costs)
D191: =D71 -> 3415.25 | E191: feeder cost
C192: + | D192: =(Summary!F18+SUM(Summary!F21:F29))/2 -> 229.0793612 | E192: ½ of feed & other costs
C193: x | D193: 6.75 | E193: % operating interest
C194: x | D194: =B50 -> 160 | E194: days on feed
C195: ÷ | D195: 365 | E195: days /year
C196: = | D196: =ROUND(((D191+D192)*(D193)*(D194/D195/100)),2) -> 107.83 | E196: /feeder
A198: FOOTNOTE: cwt = hundred-weight = 100 lbs
A200: Labour Costs
A201: Hours/Head | D201: 1 | E201: hours/feeder/year
A202: Labour Rate | C202: x | D202: 28 | E202: /hour
C203: = | D203: =ROUND(D201*D202,2) -> 28 | E203: /feeder

Sheet Feed Rations
A1: Feed Costs & Requirements Worksheet
A3: ="Total Days on Feed = "&Input!B50&" days @ "&Input!D23&" lbs. Average Daily Gain (ADG) Per Day" -> Total Days on Feed = 160 days @ 2.5 lbs. Average Daily Gain (ADG) Per Day
A5: Barley Silage Ration
A6: Weight Range (lbs) | E6: 500 to 600 | F6: 600 to 700 | G6: 700-800 | H6: 800-900 | I6: Total lbs /steer | J6: Feed Cost $/steer | K6: ="Total Units Required ("&Input!D12&" steers)" -> Total Units Required (500 steers) | L6: ="Total Feed Cost ("&Input!D12&" steers)" -> Total Feed Cost (500 steers)
A7: Days on Feed | E7: =Input!B46 -> 40 | F7: =Input!B47 -> 40 | G7: =Input!B48 -> 40 | H7: =Input!B49 -> 40
A8: Feed Name | B8: $/unit | C8: lbs/Unit | D8: $/lb | E8: As Fed Lbs/Head/Day
A9: =Input!A28 -> Alfalfa Grass Hay | B9: =Input!B28 -> 120 | C9: =Input!C28 -> 2000 | D9: =Input!D28 -> 0.06 | E9: =IF(Input!$D$23=1.5,'Ration Data'!B7,IF(Input!$D$23=2,'Ration Data'!J7,'Ration Data'!R7)) -> 3 | F9: =IF(Input!$D$23=1.5,'Ration Data'!C7,IF(Input!$D$23=2,'Ration Data'!K7,'Ration Data'!S7)) -> 3 | G9: =IF(Input!$D$23=1.5,'Ration Data'!D7,IF(Input!$D$23=2,'Ration Data'!L7,'Ration Data'!T7)) -> 2.5 | H9: =IF(Input!$D$23=1.5,'Ration Data'!E7,IF(Input!$D$23=2,'Ration Data'!M7,'Ration Data'!U7)) -> 2 | I9: =ROUND(($E$7*E9)+($F$7*F9)+($G$7*G9)+($H$7*H9),0) -> 420 | J9: =SUM(I9*D9) -> 25.2 | K9: =ROUNDUP((I9*Input!$D$12)/C9,0) -> 105 | L9: =SUM(K9*B9) -> 12600
A10: =Input!A29 -> Corn Silage | B10: =Input!B29 -> 40 | C10: =Input!C29 -> 2000 | D10: =Input!D29 -> 0.02 | E10: =IF(Input!$D$23=1.5,'Ration Data'!B8,IF(Input!$D$23=2,'Ration Data'!J8,'Ration Data'!R8)) -> 0 | F10: =IF(Input!$D$23=1.5,'Ration Data'!C8,IF(Input!$D$23=2,'Ration Data'!K8,'Ration Data'!S8)) -> 0 | G10: =IF(Input!$D$23=1.5,'Ration Data'!D8,IF(Input!$D$23=2,'Ration Data'!L8,'Ration Data'!T8)) -> 0 | H10: =IF(Input!$D$23=1.5,'Ration Data'!E8,IF(Input!$D$23=2,'Ration Data'!M8,'Ration Data'!U8)) -> 0 | I10: =ROUND(($E$7*E10)+($F$7*F10)+($G$7*G10)+($H$7*H10),0) -> 0 | J10: =SUM(I10*D10) -> 0 | K10: =ROUNDUP((I10*Input!$D$12)/C10,0) -> 0 | L10: =SUM(K10*B10) -> 0
A11: =Input!A30 -> Barley Silage | B11: =Input!B30 -> 50 | C11: =Input!C30 -> 2000 | D11: =Input!D30 -> 0.025 | E11: =IF(Input!$D$23=1.5,'Ration Data'!B9,IF(Input!$D$23=2,'Ration Data'!J9,'Ration Data'!R9)) -> 23 | F11: =IF(Input!$D$23=1.5,'Ration Data'!C9,IF(Input!$D$23=2,'Ration Data'!K9,'Ration Data'!S9)) -> 25.75 | G11: =IF(Input!$D$23=1.5,'Ration Data'!D9,IF(Input!$D$23=2,'Ration Data'!L9,'Ration Data'!T9)) -> 29.25 | H11: =IF(Input!$D$23=1.5,'Ration Data'!E9,IF(Input!$D$23=2,'Ration Data'!M9,'Ration Data'!U9)) -> 32.5 | I11: 4420 | J11: 110.5 | K11: =ROUNDUP((I11*Input!$D$12)/C11,0) -> 1105 | L11: 55250
A12: =Input!A31 -> Barley Grain | B12: =Input!B31 -> 4.5 | C12: =Input!C31 -> 48 | D12: =Input!D31 -> 0.094 | E12: =IF(Input!$D$23=1.5,'Ration Data'!B10,IF(Input!$D$23=2,'Ration Data'!J10,'Ration Data'!R10)) -> 5 | F12: =IF(Input!$D$23=1.5,'Ration Data'!C10,IF(Input!$D$23=2,'Ration Data'!K10,'Ration Data'!S10)) -> 6 | G12: =IF(Input!$D$23=1.5,'Ration Data'!D10,IF(Input!$D$23=2,'Ration Data'!L10,'Ration Data'!T10)) -> 7 | H12: =IF(Input!$D$23=1.5,'Ration Data'!E10,IF(Input!$D$23=2,'Ration Data'!M10,'Ration Data'!U10)) -> 8 | I12: 1040 | J12: 97.76 | K12: =ROUNDUP((I12*Input!$D$12)/C12,0) -> 10834 | L12: 48753
A13: =Input!A32 -> Greenfeed | B13: =Input!B32 -> 115 | C13: =Input!C32 -> 2000 | D13: =Input!D32 -> 0.058 | E13: =IF(Input!$D$23=1.5,'Ration Data'!B11,IF(Input!$D$23=2,'Ration Data'!J11,'Ration Data'!R11)) -> 0 | F13: =IF(Input!$D$23=1.5,'Ration Data'!C11,IF(Input!$D$23=2,'Ration Data'!K11,'Ration Data'!S11)) -> 0 | G13: =IF(Input!$D$23=1.5,'Ration Data'!D11,IF(Input!$D$23=2,'Ration Data'!L11,'Ration Data'!T11)) -> 0 | H13: =IF(Input!$D$23=1.5,'Ration Data'!E11,IF(Input!$D$23=2,'Ration Data'!M11,'Ration Data'!U11)) -> 0 | I13: =ROUND(($E$7*E13)+($F$7*F13)+($G$7*G13)+($H$7*H13),0) -> 0 | J13: =SUM(I13*D13) -> 0 | K13: =ROUNDUP((I13*Input!$D$12)/C13,0) -> 0 | L13: =SUM(K13*B13) -> 0
A14: =Input!A33 -> Straw | B14: =Input!B33 -> 70 | C14: =Input!C33 -> 2000 | D14: =Input!D33 -> 0.035 | E14: =IF(Input!$D$23=1.5,'Ration Data'!B12,IF(Input!$D$23=2,'Ration Data'!J12,'Ration Data'!R12)) -> 0 | F14: =IF(Input!$D$23=1.5,'Ration Data'!C12,IF(Input!$D$23=2,'Ration Data'!K12,'Ration Data'!S12)) -> 0 | G14: =IF(Input!$D$23=1.5,'Ration Data'!D12,IF(Input!$D$23=2,'Ration Data'!L12,'Ration Data'!T12)) -> 0 | H14: =IF(Input!$D$23=1.5,'Ration Data'!E12,IF(Input!$D$23=2,'Ration Data'!M12,'Ration Data'!U12)) -> 0 | I14: =ROUND(($E$7*E14)+($F$7*F14)+($G$7*G14)+($H$7*H14),0) -> 0 | J14: =SUM(I14*D14) -> 0 | K14: =ROUNDUP((I14*Input!$D$12)/C14,0) -> 0 | L14: =SUM(K14*B14) -> 0
A15: =Input!A34 -> 32-20% Feedlot Suppl. | B15: =Input!B34 -> 600 | C15: =Input!C34 -> 2205 | D15: =Input!D34 -> 0.272 | E15: =IF(Input!$D$23=1.5,'Ration Data'!B13,IF(Input!$D$23=2,'Ration Data'!J13,'Ration Data'!R13)) -> 0 | F15: =IF(Input!$D$23=1.5,'Ration Data'!C13,IF(Input!$D$23=2,'Ration Data'!K13,'Ration Data'!S13)) -> 0 | G15: =IF(Input!$D$23=1.5,'Ration Data'!D13,IF(Input!$D$23=2,'Ration Data'!L13,'Ration Data'!T13)) -> 0 | H15: =IF(Input!$D$23=1.5,'Ration Data'!E13,IF(Input!$D$23=2,'Ration Data'!M13,'Ration Data'!U13)) -> 0 | I15: 0 | J15: 0 | K15: =ROUNDUP((I15*Input!$D$12)/C15,0) -> 0 | L15: 0
A16: =Input!A35 -> DDGS Corn/Wheat | B16: =Input!B35 -> 250 | C16: =Input!C35 -> 2205 | D16: =Input!D35 -> 0.113 | E16: =IF(Input!$D$23=1.5,'Ration Data'!B14,IF(Input!$D$23=2,'Ration Data'!J14,'Ration Data'!R14)) -> 0 | F16: =IF(Input!$D$23=1.5,'Ration Data'!C14,IF(Input!$D$23=2,'Ration Data'!K14,'Ration Data'!S14)) -> 0 | G16: =IF(Input!$D$23=1.5,'Ration Data'!D14,IF(Input!$D$23=2,'Ration Data'!L14,'Ration Data'!T14)) -> 0 | H16: =IF(Input!$D$23=1.5,'Ration Data'!E14,IF(Input!$D$23=2,'Ration Data'!M14,'Ration Data'!U14)) -> 0 | I16: 0 | J16: 0 | K16: =ROUNDUP((I16*Input!$D$12)/C16,0) -> 0 | L16: 0
A17: =Input!A36 -> 1:1 Premix | B17: =Input!B36 -> 50 | C17: =Input!C36 -> 55 | D17: =Input!D36 -> 0.909 | E17: =IF(Input!$D$23=1.5,'Ration Data'!B15,IF(Input!$D$23=2,'Ration Data'!J15,'Ration Data'!R15)) -> 0.25 | F17: =IF(Input!$D$23=1.5,'Ration Data'!C15,IF(Input!$D$23=2,'Ration Data'!K15,'Ration Data'!S15)) -> 0.27 | G17: =IF(Input!$D$23=1.5,'Ration Data'!D15,IF(Input!$D$23=2,'Ration Data'!L15,'Ration Data'!T15)) -> 0.3 | H17: =IF(Input!$D$23=1.5,'Ration Data'!E15,IF(Input!$D$23=2,'Ration Data'!M15,'Ration Data'!U15)) -> 0.32 | I17: 46 | J17: 41.814 | K17: =ROUNDUP((I17*Input!$D$12)/C17,0) -> 419 | L17: 20950
A18: =Input!A37 -> 2:1 Premix | B18: =Input!B37 -> 50 | C18: =Input!C37 -> 55 | D18: =Input!D37 -> 0.909 | E18: =IF(Input!$D$23=1.5,'Ration Data'!B16,IF(Input!$D$23=2,'Ration Data'!J16,'Ration Data'!R16)) -> 0 | F18: =IF(Input!$D$23=1.5,'Ration Data'!C16,IF(Input!$D$23=2,'Ration Data'!K16,'Ration Data'!S16)) -> 0 | G18: =IF(Input!$D$23=1.5,'Ration Data'!D16,IF(Input!$D$23=2,'Ration Data'!L16,'Ration Data'!T16)) -> 0 | H18: =IF(Input!$D$23=1.5,'Ration Data'!E16,IF(Input!$D$23=2,'Ration Data'!M16,'Ration Data'!U16)) -> 0 | I18: 0 | J18: 0 | K18: =ROUNDUP((I18*Input!$D$12)/C18,0) -> 0 | L18: 0
A19: =Input!A38 -> Limestone | B19: =Input!B38 -> 20 | C19: =Input!C38 -> 55 | D19: =Input!D38 -> 0.364 | E19: =IF(Input!$D$23=1.5,'Ration Data'!B17,IF(Input!$D$23=2,'Ration Data'!J17,'Ration Data'!R17)) -> 0.06 | F19: =IF(Input!$D$23=1.5,'Ration Data'!C17,IF(Input!$D$23=2,'Ration Data'!K17,'Ration Data'!S17)) -> 0.085 | G19: =IF(Input!$D$23=1.5,'Ration Data'!D17,IF(Input!$D$23=2,'Ration Data'!L17,'Ration Data'!T17)) -> 0.11 | H19: =IF(Input!$D$23=1.5,'Ration Data'!E17,IF(Input!$D$23=2,'Ration Data'!M17,'Ration Data'!U17)) -> 0.13 | I19: 15 | J19: 5.46 | K19: =ROUNDUP((I19*Input!$D$12)/C19,0) -> 137 | L19: 2740
A20: =Input!A39 -> Other | B20: =Input!B39 -> 0 | C20: =Input!C39 -> 2000 | D20: =Input!D39 -> 0 | E20: =IF(Input!$D$23=1.5,'Ration Data'!B18,IF(Input!$D$23=2,'Ration Data'!J18,'Ration Data'!R18)) -> 0 | F20: =IF(Input!$D$23=1.5,'Ration Data'!C18,IF(Input!$D$23=2,'Ration Data'!K18,'Ration Data'!S18)) -> 0 | G20: =IF(Input!$D$23=1.5,'Ration Data'!D18,IF(Input!$D$23=2,'Ration Data'!L18,'Ration Data'!T18)) -> 0 | H20: =IF(Input!$D$23=1.5,'Ration Data'!E18,IF(Input!$D$23=2,'Ration Data'!M18,'Ration Data'!U18)) -> 0 | I20: =ROUND(($E$7*E20)+($F$7*F20)+($G$7*G20)+($H$7*H20),0) -> 0 | J20: =SUM(I20*D20) -> 0 | K20: =ROUNDUP((I20*Input!$D$12)/C20,0) -> 0 | L20: =SUM(K20*B20) -> 0
D21: $/head/day | E21: =IF(Input!$D$23=1.5,'Ration Data'!B19,IF(Input!$D$23=2,'Ration Data'!J19,'Ration Data'!R19)) -> 1.47409 | F21: =IF(Input!$D$23=1.5,'Ration Data'!C19,IF(Input!$D$23=2,'Ration Data'!K19,'Ration Data'!S19)) -> 1.66412 | G21: =IF(Input!$D$23=1.5,'Ration Data'!D19,IF(Input!$D$23=2,'Ration Data'!L19,'Ration Data'!T19)) -> 1.85199 | H21: =IF(Input!$D$23=1.5,'Ration Data'!E19,IF(Input!$D$23=2,'Ration Data'!M19,'Ration Data'!U19)) -> 2.0227 | J21: =SUM(J9:J20) -> 280.734 | L21: =SUM(L9:L20) -> 140293
A23: Corn Silage Ration
A24: Weight Range (lbs) | E24: 500 to 600 | F24: 600 to 700 | G24: 700-800 | H24: 800-900 | I24: Total lbs /steer | J24: Feed Cost $/steer | K24: ="Total Units Required ("&Input!D12&" steers)" -> Total Units Required (500 steers) | L24: ="Total Feed Cost ("&Input!D12&" steers)" -> Total Feed Cost (500 steers)
A25: Days on Feed | E25: =E7 -> 40 | F25: =F7 -> 40 | G25: =G7 -> 40 | H25: =H7 -> 40
A26: Feed Name | B26: $/unit | C26: lbs/Unit | D26: $/lb | E26: As Fed Lbs/Head/Day
A27: =A45 -> Alfalfa Grass Hay | B27: =B9 -> 120 | C27: 2000 | D27: 0.06 | E27: =IF(Input!$D$23=1.5,'Ration Data'!B24,IF(Input!$D$23=2,'Ration Data'!J24,'Ration Data'!R24)) -> 5 | F27: =IF(Input!$D$23=1.5,'Ration Data'!C24,IF(Input!$D$23=2,'Ration Data'!K24,'Ration Data'!S24)) -> 5 | G27: =IF(Input!$D$23=1.5,'Ration Data'!D24,IF(Input!$D$23=2,'Ration Data'!L24,'Ration Data'!T24)) -> 5 | H27: =IF(Input!$D$23=1.5,'Ration Data'!E24,IF(Input!$D$23=2,'Ration Data'!M24,'Ration Data'!U24)) -> 5 | I27: =ROUND(($E$25*E27)+($F$25*F27)+($G$25*G27)+($H$25*H27),0) -> 800 | J27: =SUM(I27*D27) -> 48 | K27: =ROUNDUP((I27*Input!$D$12)/C27,0) -> 200 | L27: =SUM(K27*B27) -> 24000
A28: =Input!A29 -> Corn Silage | B28: 40 | C28: 2000 | D28: 0.02 | E28: =IF(Input!$D$23=1.5,'Ration Data'!B25,IF(Input!$D$23=2,'Ration Data'!J25,'Ration Data'!R25)) -> 19 | F28: =IF(Input!$D$23=1.5,'Ration Data'!C25,IF(Input!$D$23=2,'Ration Data'!K25,'Ration Data'!S25)) -> 22 | G28: =IF(Input!$D$23=1.5,'Ration Data'!D25,IF(Input!$D$23=2,'Ration Data'!L25,'Ration Data'!T25)) -> 27 | H28: =IF(Input!$D$23=1.5,'Ration Data'!E25,IF(Input!$D$23=2,'Ration Data'!M25,'Ration Data'!U25)) -> 31.75 | I28: =ROUND(($E$25*E28)+($F$25*F28)+($G$25*G28)+($H$25*H28),0) -> 3990 | J28: =SUM(I28*D28) -> 79.8 | K28: =ROUNDUP((I28*Input!$D$12)/C28,0) -> 998 | L28: =SUM(K28*B28) -> 39920
A29: =Input!A30 -> Barley Silage | B29: 50 | C29: 2000 | D29: 0.025 | E29: =IF(Input!$D$23=1.5,'Ration Data'!B26,IF(Input!$D$23=2,'Ration Data'!J26,'Ration Data'!R26)) -> 0 | F29: =IF(Input!$D$23=1.5,'Ration Data'!C26,IF(Input!$D$23=2,'Ration Data'!K26,'Ration Data'!S26)) -> 0 | G29: =IF(Input!$D$23=1.5,'Ration Data'!D26,IF(Input!$D$23=2,'Ration Data'!L26,'Ration Data'!T26)) -> 0 | H29: =IF(Input!$D$23=1.5,'Ration Data'!E26,IF(Input!$D$23=2,'Ration Data'!M26,'Ration Data'!U26)) -> 0 | I29: 0 | J29: 0 | K29: =ROUNDUP((I29*Input!$D$12)/C29,0) -> 0 | L29: 0
A30: =Input!A31 -> Barley Grain | B30: 4.5 | C30: 48 | D30: 0.094 | E30: =IF(Input!$D$23=1.5,'Ration Data'!B27,IF(Input!$D$23=2,'Ration Data'!J27,'Ration Data'!R27)) -> 4 | F30: =IF(Input!$D$23=1.5,'Ration Data'!C27,IF(Input!$D$23=2,'Ration Data'!K27,'Ration Data'!S27)) -> 5 | G30: =IF(Input!$D$23=1.5,'Ration Data'!D27,IF(Input!$D$23=2,'Ration Data'!L27,'Ration Data'!T27)) -> 5.5 | H30: =IF(Input!$D$23=1.5,'Ration Data'!E27,IF(Input!$D$23=2,'Ration Data'!M27,'Ration Data'!U27)) -> 6 | I30: 820 | J30: 77.08 | K30: =ROUNDUP((I30*Input!$D$12)/C30,0) -> 8542 | L30: 38439
A31: =Input!A32 -> Greenfeed | B31: 115 | C31: 2000 | D31: 0.058 | E31: =IF(Input!$D$23=1.5,'Ration Data'!B28,IF(Input!$D$23=2,'Ration Data'!J28,'Ration Data'!R28)) -> 0 | F31: =IF(Input!$D$23=1.5,'Ration Data'!C28,IF(Input!$D$23=2,'Ration Data'!K28,'Ration Data'!S28)) -> 0 | G31: =IF(Input!$D$23=1.5,'Ration Data'!D28,IF(Input!$D$23=2,'Ration Data'!L28,'Ration Data'!T28)) -> 0 | H31: =IF(Input!$D$23=1.5,'Ration Data'!E28,IF(Input!$D$23=2,'Ration Data'!M28,'Ration Data'!U28)) -> 0 | I31: =ROUND(($E$25*E31)+($F$25*F31)+($G$25*G31)+($H$25*H31),0) -> 0 | J31: =SUM(I31*D31) -> 0 | K31: =ROUNDUP((I31*Input!$D$12)/C31,0) -> 0 | L31: =SUM(K31*B31) -> 0
A32: =Input!A33 -> Straw | B32: 70 | C32: 2000 | D32: 0.035 | E32: =IF(Input!$D$23=1.5,'Ration Data'!B29,IF(Input!$D$23=2,'Ration Data'!J29,'Ration Data'!R29)) -> 0 | F32: =IF(Input!$D$23=1.5,'Ration Data'!C29,IF(Input!$D$23=2,'Ration Data'!K29,'Ration Data'!S29)) -> 0 | G32: =IF(Input!$D$23=1.5,'Ration Data'!D29,IF(Input!$D$23=2,'Ration Data'!L29,'Ration Data'!T29)) -> 0 | H32: =IF(Input!$D$23=1.5,'Ration Data'!E29,IF(Input!$D$23=2,'Ration Data'!M29,'Ration Data'!U29)) -> 0 | I32: =ROUND(($E$25*E32)+($F$25*F32)+($G$25*G32)+($H$25*H32),0) -> 0 | J32: =SUM(I32*D32) -> 0 | K32: =ROUNDUP((I32*Input!$D$12)/C32,0) -> 0 | L32: =SUM(K32*B32) -> 0
A33: =Input!A34 -> 32-20% Feedlot Suppl. | B33: =B15 -> 600 | C33: 2205 | D33: 0.272 | E33: =IF(Input!$D$23=1.5,'Ration Data'!B30,IF(Input!$D$23=2,'Ration Data'!J30,'Ration Data'!R30)) -> 0 | F33: =IF(Input!$D$23=1.5,'Ration Data'!C30,IF(Input!$D$23=2,'Ration Data'!K30,'Ration Data'!S30)) -> 0 | G33: =IF(Input!$D$23=1.5,'Ration Data'!D30,IF(Input!$D$23=2,'Ration Data'!L30,'Ration Data'!T30)) -> 0 | H33: =IF(Input!$D$23=1.5,'Ration Data'!E30,IF(Input!$D$23=2,'Ration Data'!M30,'Ration Data'!U30)) -> 0 | I33: 0 | J33: 0 | K33: =ROUNDUP((I33*Input!$D$12)/C33,0) -> 0 | L33: 0
A34: =Input!A35 -> DDGS Corn/Wheat | B34: 250 | C34: 2205 | D34: 0.113 | E34: =IF(Input!$D$23=1.5,'Ration Data'!B31,IF(Input!$D$23=2,'Ration Data'!J31,'Ration Data'!R31)) -> 1 | F34: =IF(Input!$D$23=1.5,'Ration Data'!C31,IF(Input!$D$23=2,'Ration Data'!K31,'Ration Data'!S31)) -> 1 | G34: =IF(Input!$D$23=1.5,'Ration Data'!D31,IF(Input!$D$23=2,'Ration Data'!L31,'Ration Data'!T31)) -> 0.75 | H34: =IF(Input!$D$23=1.5,'Ration Data'!E31,IF(Input!$D$23=2,'Ration Data'!M31,'Ration Data'!U31)) -> 0.5 | I34: 130 | J34: 14.69 | K34: =ROUNDUP((I34*Input!$D$12)/C34,0) -> 30 | L34: 7500
A35: =Input!A36 -> 1:1 Premix | B35: 50 | C35: 55 | D35: 0.909 | E35: =IF(Input!$D$23=1.5,'Ration Data'!B32,IF(Input!$D$23=2,'Ration Data'!J32,'Ration Data'!R32)) -> 0 | F35: =IF(Input!$D$23=1.5,'Ration Data'!C32,IF(Input!$D$23=2,'Ration Data'!K32,'Ration Data'!S32)) -> 0 | G35: =IF(Input!$D$23=1.5,'Ration Data'!D32,IF(Input!$D$23=2,'Ration Data'!L32,'Ration Data'!T32)) -> 0 | H35: =IF(Input!$D$23=1.5,'Ration Data'!E32,IF(Input!$D$23=2,'Ration Data'!M32,'Ration Data'!U32)) -> 0 | I35: 0 | J35: 0 | K35: =ROUNDUP((I35*Input!$D$12)/C35,0) -> 0 | L35: 0
A36: =Input!A37 -> 2:1 Premix | B36: 50 | C36: 55 | D36: 0.909 | E36: =IF(Input!$D$23=1.5,'Ration Data'!B33,IF(Input!$D$23=2,'Ration Data'!J33,'Ration Data'!R33)) -> 0.25 | F36: =IF(Input!$D$23=1.5,'Ration Data'!C33,IF(Input!$D$23=2,'Ration Data'!K33,'Ration Data'!S33)) -> 0.28 | G36: =IF(Input!$D$23=1.5,'Ration Data'!D33,IF(Input!$D$23=2,'Ration Data'!L33,'Ration Data'!T33)) -> 0.285 | H36: =IF(Input!$D$23=1.5,'Ration Data'!E33,IF(Input!$D$23=2,'Ration Data'!M33,'Ration Data'!U33)) -> 0.315 | I36: 45 | J36: 40.905 | K36: =ROUNDUP((I36*Input!$D$12)/C36,0) -> 410 | L36: 20500
A37: =Input!A38 -> Limestone | B37: 20 | C37: 55 | D37: 0.364 | E37: =IF(Input!$D$23=1.5,'Ration Data'!B34,IF(Input!$D$23=2,'Ration Data'!J34,'Ration Data'!R34)) -> 0.065 | F37: =IF(Input!$D$23=1.5,'Ration Data'!C34,IF(Input!$D$23=2,'Ration Data'!K34,'Ration Data'!S34)) -> 0.09 | G37: =IF(Input!$D$23=1.5,'Ration Data'!D34,IF(Input!$D$23=2,'Ration Data'!L34,'Ration Data'!T34)) -> 0.09 | H37: =IF(Input!$D$23=1.5,'Ration Data'!E34,IF(Input!$D$23=2,'Ration Data'!M34,'Ration Data'!U34)) -> 0.105 | I37: 14 | J37: 5.096 | K37: =ROUNDUP((I37*Input!$D$12)/C37,0) -> 128 | L37: 2560
A38: =Input!A39 -> Other | B38: 0 | C38: 2000 | D38: 0 | E38: =IF(Input!$D$23=1.5,'Ration Data'!B35,IF(Input!$D$23=2,'Ration Data'!J35,'Ration Data'!R35)) -> 0 | F38: =IF(Input!$D$23=1.5,'Ration Data'!C35,IF(Input!$D$23=2,'Ration Data'!K35,'Ration Data'!S35)) -> 0 | G38: =IF(Input!$D$23=1.5,'Ration Data'!D35,IF(Input!$D$23=2,'Ration Data'!L35,'Ration Data'!T35)) -> 0 | H38: =IF(Input!$D$23=1.5,'Ration Data'!E35,IF(Input!$D$23=2,'Ration Data'!M35,'Ration Data'!U35)) -> 0 | I38: =ROUND(($E$25*E38)+($F$25*F38)+($G$25*G38)+($H$25*H38),0) -> 0 | J38: =SUM(I38*D38) -> 0 | K38: =ROUNDUP((I38*Input!$D$12)/C38,0) -> 0 | L38: =SUM(K38*B38) -> 0
D39: $/head/day | E39: =IF(Input!$D$23=1.5,'Ration Data'!B36,IF(Input!$D$23=2,'Ration Data'!J36,'Ration Data'!R36)) -> 1.41991 | F39: =IF(Input!$D$23=1.5,'Ration Data'!C36,IF(Input!$D$23=2,'Ration Data'!K36,'Ration Data'!S36)) -> 1.61028 | G39: =IF(Input!$D$23=1.5,'Ration Data'!D36,IF(Input!$D$23=2,'Ration Data'!L36,'Ration Data'!T36)) -> 1.733575 | H39: =IF(Input!$D$23=1.5,'Ration Data'!E36,IF(Input!$D$23=2,'Ration Data'!M36,'Ration Data'!U36)) -> 1.880055 | J39: =SUM(J27:J38) -> 265.571 | L39: =SUM(L27:L38) -> 132919
A41: Alfalfa Grass Hay Ration
A42: Weight Range (lbs) | E42: 500 to 600 | F42: 600 to 700 | G42: 700-800 | H42: 800-900 | I42: Total lbs /steer | J42: Feed Cost $/steer | K42: ="Total Units Required ("&Input!D12&" steers)" -> Total Units Required (500 steers) | L42: ="Total Feed Cost ("&Input!D12&" steers)" -> Total Feed Cost (500 steers)
A43: Days on Feed | E43: =E7 -> 40 | F43: =F7 -> 40 | G43: =G7 -> 40 | H43: =H7 -> 40
A44: Feed Name | B44: $/unit | C44: lbs/Unit | D44: $/lb | E44: As Fed Lbs/Head/Day
A45: =Input!A28 -> Alfalfa Grass Hay | B45: =B9 -> 120 | C45: 2000 | D45: 0.06 | E45: =IF(Input!$D$23=1.5,'Ration Data'!B41,IF(Input!$D$23=2,'Ration Data'!J41,'Ration Data'!R41)) -> 11.25 | F45: =IF(Input!$D$23=1.5,'Ration Data'!C41,IF(Input!$D$23=2,'Ration Data'!K41,'Ration Data'!S41)) -> 12.5 | G45: =IF(Input!$D$23=1.5,'Ration Data'!D41,IF(Input!$D$23=2,'Ration Data'!L41,'Ration Data'!T41)) -> 14 | H45: =IF(Input!$D$23=1.5,'Ration Data'!E41,IF(Input!$D$23=2,'Ration Data'!M41,'Ration Data'!U41)) -> 15 | I45: =ROUND(($E$43*E45)+($F$43*F45)+($G$43*G45)+($H$43*H45),0) -> 2110 | J45: =SUM(I45*D45) -> 126.6 | K45: =ROUNDUP((I45*Input!$D$12)/C45,0) -> 528 | L45: =SUM(K45*B45) -> 63360
A46: =Input!A29 -> Corn Silage | B46: 40 | C46: 2000 | D46: 0.02 | E46: =IF(Input!$D$23=1.5,'Ration Data'!B42,IF(Input!$D$23=2,'Ration Data'!J42,'Ration Data'!R42)) -> 0 | F46: =IF(Input!$D$23=1.5,'Ration Data'!C42,IF(Input!$D$23=2,'Ration Data'!K42,'Ration Data'!S42)) -> 0 | G46: =IF(Input!$D$23=1.5,'Ration Data'!D42,IF(Input!$D$23=2,'Ration Data'!L42,'Ration Data'!T42)) -> 0 | H46: =IF(Input!$D$23=1.5,'Ration Data'!E42,IF(Input!$D$23=2,'Ration Data'!M42,'Ration Data'!U42)) -> 0 | I46: =ROUND(($E$43*E46)+($F$43*F46)+($G$43*G46)+($H$43*H46),0) -> 0 | J46: =SUM(I46*D46) -> 0 | K46: =ROUNDUP((I46*Input!$D$12)/C46,0) -> 0 | L46: =SUM(K46*B46) -> 0
A47: =Input!A30 -> Barley Silage | B47: 50 | C47: 2000 | D47: 0.025 | E47: =IF(Input!$D$23=1.5,'Ration Data'!B43,IF(Input!$D$23=2,'Ration Data'!J43,'Ration Data'!R43)) -> 0 | F47: =IF(Input!$D$23=1.5,'Ration Data'!C43,IF(Input!$D$23=2,'Ration Data'!K43,'Ration Data'!S43)) -> 0 | G47: =IF(Input!$D$23=1.5,'Ration Data'!D43,IF(Input!$D$23=2,'Ration Data'!L43,'Ration Data'!T43)) -> 0 | H47: =IF(Input!$D$23=1.5,'Ration Data'!E43,IF(Input!$D$23=2,'Ration Data'!M43,'Ration Data'!U43)) -> 0 | I47: 0 | J47: 0 | K47: =ROUNDUP((I47*Input!$D$12)/C47,0) -> 0 | L47: 0
A48: =Input!A31 -> Barley Grain | B48: 4.5 | C48: 48 | D48: 0.094 | E48: =IF(Input!$D$23=1.5,'Ration Data'!B44,IF(Input!$D$23=2,'Ration Data'!J44,'Ration Data'!R44)) -> 6.75 | F48: =IF(Input!$D$23=1.5,'Ration Data'!C44,IF(Input!$D$23=2,'Ration Data'!K44,'Ration Data'!S44)) -> 7.8 | G48: =IF(Input!$D$23=1.5,'Ration Data'!D44,IF(Input!$D$23=2,'Ration Data'!L44,'Ration Data'!T44)) -> 8.7 | H48: =IF(Input!$D$23=1.5,'Ration Data'!E44,IF(Input!$D$23=2,'Ration Data'!M44,'Ration Data'!U44)) -> 9.7 | I48: 1318 | J48: 123.892 | K48: =ROUNDUP((I48*Input!$D$12)/C48,0) -> 13730 | L48: 61785
A49: =Input!A32 -> Greenfeed | B49: 115 | C49: 2000 | D49: 0.058 | E49: =IF(Input!$D$23=1.5,'Ration Data'!B45,IF(Input!$D$23=2,'Ration Data'!J45,'Ration Data'!R45)) -> 0 | F49: =IF(Input!$D$23=1.5,'Ration Data'!C45,IF(Input!$D$23=2,'Ration Data'!K45,'Ration Data'!S45)) -> 0 | G49: =IF(Input!$D$23=1.5,'Ration Data'!D45,IF(Input!$D$23=2,'Ration Data'!L45,'Ration Data'!T45)) -> 0 | H49: =IF(Input!$D$23=1.5,'Ration Data'!E45,IF(Input!$D$23=2,'Ration Data'!M45,'Ration Data'!U45)) -> 0 | I49: =ROUND(($E$43*E49)+($F$43*F49)+($G$43*G49)+($H$43*H49),0) -> 0 | J49: =SUM(I49*D49) -> 0 | K49: =ROUNDUP((I49*Input!$D$12)/C49,0) -> 0 | L49: =SUM(K49*B49) -> 0
A50: =Input!A33 -> Straw | B50: 70 | C50: 2000 | D50: 0.035 | E50: =IF(Input!$D$23=1.5,'Ration Data'!B46,IF(Input!$D$23=2,'Ration Data'!J46,'Ration Data'!R46)) -> 0 | F50: =IF(Input!$D$23=1.5,'Ration Data'!C46,IF(Input!$D$23=2,'Ration Data'!K46,'Ration Data'!S46)) -> 0 | G50: =IF(Input!$D$23=1.5,'Ration Data'!D46,IF(Input!$D$23=2,'Ration Data'!L46,'Ration Data'!T46)) -> 0 | H50: =IF(Input!$D$23=1.5,'Ration Data'!E46,IF(Input!$D$23=2,'Ration Data'!M46,'Ration Data'!U46)) -> 0 | I50: =ROUND(($E$43*E50)+($F$43*F50)+($G$43*G50)+($H$43*H50),0) -> 0 | J50: =SUM(I50*D50) -> 0 | K50: =ROUNDUP((I50*Input!$D$12)/C50,0) -> 0 | L50: =SUM(K50*B50) -> 0
A51: =Input!A34 -> 32-20% Feedlot Suppl. | B51: =B15 -> 600 | C51: 2205 | D51: 0.272 | E51: =IF(Input!$D$23=1.5,'Ration Data'!B47,IF(Input!$D$23=2,'Ration Data'!J47,'Ration Data'!R47)) -> 0 | F51: =IF(Input!$D$23=1.5,'Ration Data'!C47,IF(Input!$D$23=2,'Ration Data'!K47,'Ration Data'!S47)) -> 0 | G51: =IF(Input!$D$23=1.5,'Ration Data'!D47,IF(Input!$D$23=2,'Ration Data'!L47,'Ration Data'!T47)) -> 0 | H51: =IF(Input!$D$23=1.5,'Ration Data'!E47,IF(Input!$D$23=2,'Ration Data'!M47,'Ration Data'!U47)) -> 0 | I51: 0 | J51: 0 | K51: =ROUNDUP((I51*Input!$D$12)/C51,0) -> 0 | L51: 0
A52: =Input!A35 -> DDGS Corn/Wheat | B52: 250 | C52: 2205 | D52: 0.113 | E52: =IF(Input!$D$23=1.5,'Ration Data'!B48,IF(Input!$D$23=2,'Ration Data'!J48,'Ration Data'!R48)) -> 0 | F52: =IF(Input!$D$23=1.5,'Ration Data'!C48,IF(Input!$D$23=2,'Ration Data'!K48,'Ration Data'!S48)) -> 0 | G52: =IF(Input!$D$23=1.5,'Ration Data'!D48,IF(Input!$D$23=2,'Ration Data'!L48,'Ration Data'!T48)) -> 0 | H52: =IF(Input!$D$23=1.5,'Ration Data'!E48,IF(Input!$D$23=2,'Ration Data'!M48,'Ration Data'!U48)) -> 0 | I52: 0 | J52: 0 | K52: =ROUNDUP((I52*Input!$D$12)/C52,0) -> 0 | L52: 0
A53: =Input!A36 -> 1:1 Premix | B53: 50 | C53: 55 | D53: 0.909 | E53: =IF(Input!$D$23=1.5,'Ration Data'!B49,IF(Input!$D$23=2,'Ration Data'!J49,'Ration Data'!R49)) -> 0.25 | F53: =IF(Input!$D$23=1.5,'Ration Data'!C49,IF(Input!$D$23=2,'Ration Data'!K49,'Ration Data'!S49)) -> 0.27 | G53: =IF(Input!$D$23=1.5,'Ration Data'!D49,IF(Input!$D$23=2,'Ration Data'!L49,'Ration Data'!T49)) -> 0.31 | H53: =IF(Input!$D$23=1.5,'Ration Data'!E49,IF(Input!$D$23=2,'Ration Data'!M49,'Ration Data'!U49)) -> 0.33 | I53: 46 | J53: 41.814 | K53: =ROUNDUP((I53*Input!$D$12)/C53,0) -> 419 | L53: 20950
A54: =Input!A37 -> 2:1 Premix | B54: 50 | C54: 55 | D54: 0.909 | E54: =IF(Input!$D$23=1.5,'Ration Data'!B50,IF(Input!$D$23=2,'Ration Data'!J50,'Ration Data'!R50)) -> 0 | F54: =IF(Input!$D$23=1.5,'Ration Data'!C50,IF(Input!$D$23=2,'Ration Data'!K50,'Ration Data'!S50)) -> 0 | G54: =IF(Input!$D$23=1.5,'Ration Data'!D50,IF(Input!$D$23=2,'Ration Data'!L50,'Ration Data'!T50)) -> 0 | H54: =IF(Input!$D$23=1.5,'Ration Data'!E50,IF(Input!$D$23=2,'Ration Data'!M50,'Ration Data'!U50)) -> 0 | I54: 0 | J54: 0 | K54: =ROUNDUP((I54*Input!$D$12)/C54,0) -> 0 | L54: 0
A55: =Input!A38 -> Limestone | B55: 20 | C55: 55 | D55: 0.364 | E55: =IF(Input!$D$23=1.5,'Ration Data'!B51,IF(Input!$D$23=2,'Ration Data'!J51,'Ration Data'!R51)) -> 0 | F55: =IF(Input!$D$23=1.5,'Ration Data'!C51,IF(Input!$D$23=2,'Ration Data'!K51,'Ration Data'!S51)) -> 0 | G55: =IF(Input!$D$23=1.5,'Ration Data'!D51,IF(Input!$D$23=2,'Ration Data'!L51,'Ration Data'!T51)) -> 0 | H55: =IF(Input!$D$23=1.5,'Ration Data'!E51,IF(Input!$D$23=2,'Ration Data'!M51,'Ration Data'!U51)) -> 0 | I55: 0 | J55: 0 | K55: =ROUNDUP((I55*Input!$D$12)/C55,0) -> 0 | L55: 0
A56: =Input!A39 -> Other | B56: 0 | C56: 2000 | D56: 0 | E56: =IF(Input!$D$23=1.5,'Ration Data'!B52,IF(Input!$D$23=2,'Ration Data'!J52,'Ration Data'!R52)) -> 0 | F56: =IF(Input!$D$23=1.5,'Ration Data'!C52,IF(Input!$D$23=2,'Ration Data'!K52,'Ration Data'!S52)) -> 0 | G56: =IF(Input!$D$23=1.5,'Ration Data'!D52,IF(Input!$D$23=2,'Ration Data'!L52,'Ration Data'!T52)) -> 0 | H56: =IF(Input!$D$23=1.5,'Ration Data'!E52,IF(Input!$D$23=2,'Ration Data'!M52,'Ration Data'!U52)) -> 0 | I56: =ROUND(($E$43*E56)+($F$43*F56)+($G$43*G56)+($H$43*H56),0) -> 0 | J56: =SUM(I56*D56) -> 0 | K56: =ROUNDUP((I56*Input!$D$12)/C56,0) -> 0 | L56: =SUM(K56*B56) -> 0
D57: $/head/day | E57: =IF(Input!$D$23=1.5,'Ration Data'!B53,IF(Input!$D$23=2,'Ration Data'!J53,'Ration Data'!R53)) -> 1.53675 | F57: =IF(Input!$D$23=1.5,'Ration Data'!C53,IF(Input!$D$23=2,'Ration Data'!K53,'Ration Data'!S53)) -> 1.72863 | G57: =IF(Input!$D$23=1.5,'Ration Data'!D53,IF(Input!$D$23=2,'Ration Data'!L53,'Ration Data'!T53)) -> 1.93959 | H57: =IF(Input!$D$23=1.5,'Ration Data'!E53,IF(Input!$D$23=2,'Ration Data'!M53,'Ration Data'!U53)) -> 2.11177 | J57: =SUM(J45:J56) -> 292.306 | L57: =SUM(L45:L56) -> 146095
A59: ="Feed Summary - "&Input!B50&" Days" -> Feed Summary - 160 Days
D60: Total Feed Cost per Steer | G60: Average Feed Cost/Day | J60: Feed Cost per lb. of Gain Sold (shrunk weight)
A61: =A5 -> Barley Silage Ration | E61: =J21 -> 280.734 | H61: =E61/Input!$B$50 -> 1.7545875 | K61: =(E61/ROUND((Input!$D$16-(Input!$D$16*Input!$D$20/100))-(Input!$D$14-(Input!$D$14*Input!$D$21/100)),0)) -> 0.7526380697
A62: =A23 -> Corn Silage Ration | E62: =J39 -> 265.571 | H62: =E62/Input!$B$50 -> 1.65981875 | K62: =(E62/ROUND((Input!$D$16-(Input!$D$16*Input!$D$20/100))-(Input!$D$14-(Input!$D$14*Input!$D$21/100)),0)) -> 0.7119865952
A63: =A41 -> Alfalfa Grass Hay Ration | E63: =J57 -> 292.306 | H63: =E63/Input!$B$50 -> 1.8269125 | K63: =(E63/ROUND((Input!$D$16-(Input!$D$16*Input!$D$20/100))-(Input!$D$14-(Input!$D$14*Input!$D$21/100)),0)) -> 0.7836621984
A66: Note: The suggested feed rations above were formulated using Cowbytes Beef Ration Balancer software with no included allowance for wastage during feeding. Feed ration quantity and costs should be adjusted accordingly. If you need help with a budget, contact your local Manitoba Agriculture office.

Sheet Ration Data
B1: =ROUND(400/C2,0) -> 267 | C1: =SUM(B1/4) -> 66.75 | D1: days on feed | J1: =ROUND(400/K2,0) -> 200 | K1: =SUM(J1/4) -> 50 | L1: days on feed | R1: =ROUND(400/S2,0) -> 160 | S1: =SUM(R1/4) -> 40 | T1: days on feed
B2: ADG | C2: 1.5 | D2: lbs per day | J2: ADG | K2: 2 | L2: lbs per day | R2: ADG | S2: 2.5 | T2: lbs per day
A4: Barley Silage Ration | I4: Barley Silage Ration | Q4: Barley Silage Ration
A5: Weight Range (lbs) | B5: 500 to 600 | C5: 600 to 700 | D5: 700-800 | E5: 800-900 | F5: Total lbs /steer | G5: Total Cost /steer | I5: Weight Range (lbs) | J5: 500 to 600 | K5: 600 to 700 | L5: 700-800 | M5: 800-900 | N5: Total lbs /steer | O5: Total Cost /steer | Q5: Weight Range (lbs) | R5: 500 to 600 | S5: 600 to 700 | T5: 700-800 | U5: 800-900 | V5: Total lbs /steer | W5: Total Cost /steer
A6: Feed Name | B6: As Fed Lbs/Head/Day | I6: Feed Name | J6: As Fed Lbs/Head/Day | Q6: Feed Name | R6: As Fed Lbs/Head/Day
A7: =Input!A28 -> Alfalfa Grass Hay | B7: 4.75 | C7: 5 | D7: 4 | E7: 4 | F7: =SUM(($C$1*B7)+(C7*$C$1)+(D7*$C$1)+(E7*$C$1)) -> 1184.8125 | G7: =SUM(F7*Input!D28) -> 71.08875 | I7: =Input!A28 -> Alfalfa Grass Hay | J7: 3 | K7: 3 | L7: 2.5 | M7: 2 | N7: =SUM(($K$1*J7)+(K7*$K$1)+(L7*$K$1)+(M7*$K$1)) -> 525 | O7: =SUM(N7*Input!D28) -> 31.5 | Q7: =Input!A28 -> Alfalfa Grass Hay | R7: 3 | S7: 3 | T7: 2.5 | U7: 2 | V7: =SUM(($S$1*R7)+(S7*$S$1)+(T7*$S$1)+(U7*$S$1)) -> 420 | W7: =SUM(V7*Input!D28) -> 25.2
A8: =Input!A29 -> Corn Silage | B8: 0 | C8: 0 | D8: 0 | E8: 0 | F8: 0 | G8: =SUM(F8*Input!D29) -> 0 | I8: =Input!A29 -> Corn Silage | J8: 0 | K8: 0 | L8: 0 | M8: 0 | N8: 0 | O8: =SUM(N8*Input!D29) -> 0 | Q8: =Input!A29 -> Corn Silage | R8: 0 | S8: 0 | T8: 0 | U8: 0 | V8: 0 | W8: =SUM(V8*Input!D29) -> 0
A9: =Input!A30 -> Barley Silage | B9: 24 | C9: 28.25 | D9: 35.25 | E9: 40 | F9: 8510.625 | G9: =SUM(F9*Input!D30) -> 212.765625 | I9: =Input!A30 -> Barley Silage | J9: 25.5 | K9: 28.25 | L9: 34 | M9: 38.5 | N9: 6312.5 | O9: =SUM(N9*Input!D30) -> 157.8125 | Q9: =Input!A30 -> Barley Silage | R9: 23 | S9: 25.75 | T9: 29.25 | U9: 32.5 | V9: 4420 | W9: =SUM(V9*Input!D30) -> 110.5
A10: =Input!A31 -> Barley Grain | B10: 1.5 | C10: 1.5 | D10: 1.5 | E10: 1.5 | F10: 400.5 | G10: =SUM(F10*Input!D31) -> 37.647 | I10: =Input!A31 -> Barley Grain | J10: 3 | K10: 3.75 | L10: 4 | M10: 4.5 | N10: 762.5 | O10: =SUM(N10*Input!D31) -> 71.675 | Q10: =Input!A31 -> Barley Grain | R10: 5 | S10: 6 | T10: 7 | U10: 8 | V10: 1040 | W10: =SUM(V10*Input!D31) -> 97.76
A11: =Input!A32 -> Greenfeed | B11: 0 | C11: 0 | D11: 0 | E11: 0 | F11: 0 | G11: =SUM(F11*Input!D32) -> 0 | I11: =Input!A32 -> Greenfeed | J11: 0 | K11: 0 | L11: 0 | M11: 0 | N11: 0 | O11: =SUM(N11*Input!D32) -> 0 | Q11: =Input!A32 -> Greenfeed | R11: 0 | S11: 0 | T11: 0 | U11: 0 | V11: 0 | W11: =SUM(V11*Input!D32) -> 0
A12: =Input!A33 -> Straw | B12: 0 | C12: 0 | D12: 0 | E12: 0 | F12: 0 | G12: =SUM(F12*Input!D33) -> 0 | I12: =Input!A33 -> Straw | J12: 0 | K12: 0 | L12: 0 | M12: 0 | N12: 0 | O12: =SUM(N12*Input!D33) -> 0 | Q12: =Input!A33 -> Straw | R12: 0 | S12: 0 | T12: 0 | U12: 0 | V12: 0 | W12: =SUM(V12*Input!D33) -> 0
A13: =Input!A34 -> 32-20% Feedlot Suppl. | B13: 0 | C13: 0 | D13: 0 | E13: 0 | F13: 0 | G13: =SUM(F13*Input!D34) -> 0 | I13: =Input!A34 -> 32-20% Feedlot Suppl. | J13: 0 | K13: 0 | L13: 0 | M13: 0 | N13: 0 | O13: =SUM(N13*Input!D34) -> 0 | Q13: =Input!A34 -> 32-20% Feedlot Suppl. | R13: 0 | S13: 0 | T13: 0 | U13: 0 | V13: 0 | W13: =SUM(V13*Input!D34) -> 0
A14: =Input!A35 -> DDGS Corn/Wheat | B14: 0 | C14: 0 | D14: 0 | E14: 0 | F14: 0 | G14: =SUM(F14*Input!D35) -> 0 | I14: =Input!A35 -> DDGS Corn/Wheat | J14: 0 | K14: 0 | L14: 0 | M14: 0 | N14: 0 | O14: =SUM(N14*Input!D35) -> 0 | Q14: =Input!A35 -> DDGS Corn/Wheat | R14: 0 | S14: 0 | T14: 0 | U14: 0 | V14: 0 | W14: =SUM(V14*Input!D35) -> 0
A15: =Input!A36 -> 1:1 Premix | B15: 0.25 | C15: 0.25 | D15: 0.275 | E15: 0.3 | F15: 71.75625 | G15: =SUM(F15*Input!D36) -> 65.22643125 | I15: =Input!A36 -> 1:1 Premix | J15: 0.25 | K15: 0.255 | L15: 0.28 | M15: 0.31 | N15: 54.75 | O15: =SUM(N15*Input!D36) -> 49.76775 | Q15: =Input!A36 -> 1:1 Premix | R15: 0.25 | S15: 0.27 | T15: 0.3 | U15: 0.32 | V15: 45.6 | W15: =SUM(V15*Input!D36) -> 41.4504
A16: =Input!A37 -> 2:1 Premix | B16: 0 | C16: 0 | D16: 0 | E16: 0 | F16: 0 | G16: =SUM(F16*Input!D37) -> 0 | I16: =Input!A37 -> 2:1 Premix | J16: 0 | K16: 0 | L16: 0 | M16: 0 | N16: 0 | O16: =SUM(N16*Input!D37) -> 0 | Q16: =Input!A37 -> 2:1 Premix | R16: 0 | S16: 0 | T16: 0 | U16: 0 | V16: 0 | W16: =SUM(V16*Input!D37) -> 0
A17: =Input!A38 -> Limestone | B17: 0 | C17: 0 | D17: 0 | E17: 0 | F17: 0 | G17: =SUM(F17*Input!D38) -> 0 | I17: =Input!A38 -> Limestone | J17: 0.035 | K17: 0.05 | L17: 0.07 | M17: 0.09 | N17: 12.25 | O17: =SUM(N17*Input!D38) -> 4.459 | Q17: =Input!A38 -> Limestone | R17: 0.06 | S17: 0.085 | T17: 0.11 | U17: 0.13 | V17: 15.4 | W17: =SUM(V17*Input!D38) -> 5.6056
A18: =Input!A39 -> Other | B18: 0 | C18: 0 | D18: 0 | E18: 0 | F18: 0 | G18: =SUM(F18*Input!D39) -> 0 | I18: =Input!A39 -> Other | J18: 0 | K18: 0 | L18: 0 | M18: 0 | N18: 0 | O18: =SUM(N18*Input!D39) -> 0 | Q18: =Input!A39 -> Other | R18: 0 | S18: 0 | T18: 0 | U18: 0 | V18: 0 | W18: =SUM(V18*Input!D39) -> 0
A19: $/head/day | B19: =SUM((B7*Input!D28)+(B8*Input!D29)+(B9*Input!D30)+(B10*Input!D31)+(B11*Input!D32)+(B12*Input!D33)+(B13*Input!D34)+(B14*Input!D35)+(B15*Input!D36)+(B16*Input!D37)+(B17*Input!D38)+(B18*Input!D39)) -> 1.25325 | C19: =SUM((C7*Input!D28)+(C8*Input!D29)+(C9*Input!D30)+(C10*Input!D31)+(C11*Input!D32)+(C12*Input!D33)+(C13*Input!D34)+(C14*Input!D35)+(C15*Input!D36)+(C16*Input!D37)+(C17*Input!D38)+(C18*Input!D39)) -> 1.3745 | D19: =SUM((D7*Input!D28)+(D8*Input!D29)+(D9*Input!D30)+(D10*Input!D31)+(D11*Input!D32)+(D12*Input!D33)+(D13*Input!D34)+(D14*Input!D35)+(D15*Input!D36)+(D16*Input!D37)+(D17*Input!D38)+(D18*Input!D39)) -> 1.512225 | E19: =SUM((E7*Input!D28)+(E8*Input!D29)+(E9*Input!D30)+(E10*Input!D31)+(E11*Input!D32)+(E12*Input!D33)+(E13*Input!D34)+(E14*Input!D35)+(E15*Input!D36)+(E16*Input!D37)+(E17*Input!D38)+(E18*Input!D39)) -> 1.6537 | G19: =SUM(G7:G18) -> 386.7278062 | I19: $/head/day | J19: =SUM((J7*Input!D28)+(J8*Input!D29)+(J9*Input!D30)+(J10*Input!D31)+(J11*Input!D32)+(J12*Input!D33)+(J13*Input!D34)+(J14*Input!D35)+(J15*Input!D36)+(J16*Input!D37)+(J17*Input!D38)+(J18*Input!D39)) -> 1.33949 | K19: =SUM((K7*Input!D28)+(K8*Input!D29)+(K9*Input!D30)+(K10*Input!D31)+(K11*Input!D32)+(K12*Input!D33)+(K13*Input!D34)+(K14*Input!D35)+(K15*Input!D36)+(K16*Input!D37)+(K17*Input!D38)+(K18*Input!D39)) -> 1.488745 | L19: =SUM((L7*Input!D28)+(L8*Input!D29)+(L9*Input!D30)+(L10*Input!D31)+(L11*Input!D32)+(L12*Input!D33)+(L13*Input!D34)+(L14*Input!D35)+(L15*Input!D36)+(L16*Input!D37)+(L17*Input!D38)+(L18*Input!D39)) -> 1.656 | M19: =SUM((M7*Input!D28)+(M8*Input!D29)+(M9*Input!D30)+(M10*Input!D31)+(M11*Input!D32)+(M12*Input!D33)+(M13*Input!D34)+(M14*Input!D35)+(M15*Input!D36)+(M16*Input!D37)+(M17*Input!D38)+(M18*Input!D39)) -> 1.82005 | O19: =SUM(O7:O18) -> 315.21425 | Q19: $/head/day | R19: =SUM((R7*Input!D28)+(R8*Input!D29)+(R9*Input!D30)+(R10*Input!D31)+(R11*Input!D32)+(R12*Input!D33)+(R13*Input!D34)+(R14*Input!D35)+(R15*Input!D36)+(R16*Input!D37)+(R17*Input!D38)+(R18*Input!D39)) -> 1.47409 | S19: =SUM((S7*Input!D28)+(S8*Input!D29)+(S9*Input!D30)+(S10*Input!D31)+(S11*Input!D32)+(S12*Input!D33)+(S13*Input!D34)+(S14*Input!D35)+(S15*Input!D36)+(S16*Input!D37)+(S17*Input!D38)+(S18*Input!D39)) -> 1.66412 | T19: =SUM((T7*Input!D28)+(T8*Input!D29)+(T9*Input!D30)+(T10*Input!D31)+(T11*Input!D32)+(T12*Input!D33)+(T13*Input!D34)+(T14*Input!D35)+(T15*Input!D36)+(T16*Input!D37)+(T17*Input!D38)+(T18*Input!D39)) -> 1.85199 | U19: =SUM((U7*Input!D28)+(U8*Input!D29)+(U9*Input!D30)+(U10*Input!D31)+(U11*Input!D32)+(U12*Input!D33)+(U13*Input!D34)+(U14*Input!D35)+(U15*Input!D36)+(U16*Input!D37)+(U17*Input!D38)+(U18*Input!D39)) -> 2.0227 | W19: =SUM(W7:W18) -> 280.516
A21: Corn Silage Ration | I21: Corn Silage Ration | Q21: Corn Silage Ration
A22: Weight Range (lbs) | B22: 500 to 600 | C22: 600 to 700 | D22: 700-800 | E22: 800-900 | F22: Total lbs /steer | G22: Total Cost /steer | I22: Weight Range (lbs) | J22: 500 to 600 | K22: 600 to 700 | L22: 700-800 | M22: 800-900 | N22: Total lbs /steer | O22: Total Cost /steer | Q22: Weight Range (lbs) | R22: 500 to 600 | S22: 600 to 700 | T22: 700-800 | U22: 800-900 | V22: Total lbs /steer | W22: Total Cost /steer
A23: Feed Name | B23: As Fed Lbs/Head/Day | I23: Feed Name | J23: As Fed Lbs/Head/Day | Q23: Feed Name | R23: As Fed Lbs/Head/Day
A24: =Input!A28 -> Alfalfa Grass Hay | B24: 7.5 | C24: 8 | D24: 8 | E24: 8 | F24: =SUM(($C$1*B24)+(C24*$C$1)+(D24*$C$1)+(E24*$C$1)) -> 2102.625 | G24: =SUM(F24*Input!D28) -> 126.1575 | I24: =Input!A28 -> Alfalfa Grass Hay | J24: 5 | K24: 5 | L24: 5 | M24: 5 | N24: =SUM(($K$1*J24)+(K24*$K$1)+(L24*$K$1)+(M24*$K$1)) -> 1000 | O24: =SUM(N24*Input!D28) -> 60 | Q24: =Input!A28 -> Alfalfa Grass Hay | R24: 5 | S24: 5 | T24: 5 | U24: 5 | V24: =SUM(($S$1*R24)+(S24*$S$1)+(T24*$S$1)+(U24*$S$1)) -> 800 | W24: =SUM(V24*Input!D28) -> 48
A25: =Input!A29 -> Corn Silage | B25: 18 | C25: 22.5 | D25: 27.5 | E25: 32 | F25: 6675 | G25: =SUM(F25*Input!D29) -> 133.5 | I25: =Input!A29 -> Corn Silage | J25: 23 | K25: 28 | L25: 34 | M25: 39 | N25: 6200 | O25: =SUM(N25*Input!D29) -> 124 | Q25: =Input!A29 -> Corn Silage | R25: 19 | S25: 22 | T25: 27 | U25: 31.75 | V25: 3990 | W25: =SUM(V25*Input!D29) -> 79.8
A26: =Input!A30 -> Barley Silage | B26: 0 | C26: 0 | D26: 0 | E26: 0 | F26: 0 | G26: =SUM(F26*Input!D30) -> 0 | I26: =Input!A30 -> Barley Silage | J26: 0 | K26: 0 | L26: 0 | M26: 0 | N26: 0 | O26: =SUM(N26*Input!D30) -> 0 | Q26: =Input!A30 -> Barley Silage | R26: 0 | S26: 0 | T26: 0 | U26: 0 | V26: 0 | W26: =SUM(V26*Input!D30) -> 0
A27: =Input!A31 -> Barley Grain | B27: 1.5 | C27: 1.5 | D27: 1.5 | E27: 1.5 | F27: 400.5 | G27: =SUM(F27*Input!D31) -> 37.647 | I27: =Input!A31 -> Barley Grain | J27: 2.5 | K27: 2.5 | L27: 2.5 | M27: 2.5 | N27: 500 | O27: =SUM(N27*Input!D31) -> 47 | Q27: =Input!A31 -> Barley Grain | R27: 4 | S27: 5 | T27: 5.5 | U27: 6 | V27: 820 | W27: =SUM(V27*Input!D31) -> 77.08
A28: =Input!A32 -> Greenfeed | B28: 0 | C28: 0 | D28: 0 | E28: 0 | F28: 0 | G28: =SUM(F28*Input!D32) -> 0 | I28: =Input!A32 -> Greenfeed | J28: 0 | K28: 0 | L28: 0 | M28: 0 | N28: 0 | O28: =SUM(N28*Input!D32) -> 0 | Q28: =Input!A32 -> Greenfeed | R28: 0 | S28: 0 | T28: 0 | U28: 0 | V28: 0 | W28: =SUM(V28*Input!D32) -> 0
A29: =Input!A33 -> Straw | B29: 0 | C29: 0 | D29: 0 | E29: 0 | F29: 0 | G29: =SUM(F29*Input!D33) -> 0 | I29: =Input!A33 -> Straw | J29: 0 | K29: 0 | L29: 0 | M29: 0 | N29: 0 | O29: =SUM(N29*Input!D33) -> 0 | Q29: =Input!A33 -> Straw | R29: 0 | S29: 0 | T29: 0 | U29: 0 | V29: 0 | W29: =SUM(V29*Input!D33) -> 0
A30: =Input!A34 -> 32-20% Feedlot Suppl. | B30: 0 | C30: 0 | D30: 0 | E30: 0 | F30: 0 | G30: =SUM(F30*Input!D34) -> 0 | I30: =Input!A34 -> 32-20% Feedlot Suppl. | J30: 0.5 | K30: 0.55 | L30: 0.6 | M30: 0.65 | N30: 115 | O30: =SUM(N30*Input!D34) -> 31.28 | Q30: =Input!A34 -> 32-20% Feedlot Suppl. | R30: 0 | S30: 0 | T30: 0 | U30: 0 | V30: 0 | W30: =SUM(V30*Input!D34) -> 0
A31: =Input!A35 -> DDGS Corn/Wheat | B31: 0 | C31: 0 | D31: 0 | E31: 0 | F31: 0 | G31: =SUM(F31*Input!D35) -> 0 | I31: =Input!A35 -> DDGS Corn/Wheat | J31: 0 | K31: 0 | L31: 0 | M31: 0 | N31: 0 | O31: =SUM(N31*Input!D35) -> 0 | Q31: =Input!A35 -> DDGS Corn/Wheat | R31: 1 | S31: 1 | T31: 0.75 | U31: 0.5 | V31: 130 | W31: =SUM(V31*Input!D35) -> 14.69
A32: =Input!A36 -> 1:1 Premix | B32: 0 | C32: 0 | D32: 0 | E32: 0 | F32: 0 | G32: =SUM(F32*Input!D36) -> 0 | I32: =Input!A36 -> 1:1 Premix | J32: 0 | K32: 0 | L32: 0 | M32: 0 | N32: 0 | O32: =SUM(N32*Input!D36) -> 0 | Q32: =Input!A36 -> 1:1 Premix | R32: 0 | S32: 0 | T32: 0 | U32: 0 | V32: 0 | W32: =SUM(V32*Input!D36) -> 0
A33: =Input!A37 -> 2:1 Premix | B33: 0.25 | C33: 0.25 | D33: 0.275 | E33: 0.3 | F33: 71.75625 | G33: =SUM(F33*Input!D37) -> 65.22643125 | I33: =Input!A37 -> 2:1 Premix | J33: 0 | K33: 0 | L33: 0 | M33: 0 | N33: 0 | O33: =SUM(N33*Input!D37) -> 0 | Q33: =Input!A37 -> 2:1 Premix | R33: 0.25 | S33: 0.28 | T33: 0.285 | U33: 0.315 | V33: 45.2 | W33: =SUM(V33*Input!D37) -> 41.0868
A34: =Input!A38 -> Limestone | B34: 0 | C34: 0 | D34: 0 | E34: 0 | F34: 0 | G34: =SUM(F34*Input!D38) -> 0 | I34: =Input!A38 -> Limestone | J34: 0 | K34: 0 | L34: 0 | M34: 0 | N34: 0 | O34: =SUM(N34*Input!D38) -> 0 | Q34: =Input!A38 -> Limestone | R34: 0.065 | S34: 0.09 | T34: 0.09 | U34: 0.105 | V34: 14 | W34: =SUM(V34*Input!D38) -> 5.096
A35: =Input!A39 -> Other | B35: 0 | C35: 0 | D35: 0 | E35: 0 | F35: 0 | G35: =SUM(F35*Input!D39) -> 0 | I35: =Input!A39 -> Other | J35: 0 | K35: 0 | L35: 0 | M35: 0 | N35: 0 | O35: =SUM(N35*Input!D39) -> 0 | Q35: =Input!A39 -> Other | R35: 0 | S35: 0 | T35: 0 | U35: 0 | V35: 0 | W35: =SUM(V35*Input!D39) -> 0
A36: $/head/day | B36: =SUM((B24*Input!D28)+(B25*Input!D29)+(B26*Input!D30)+(B27*Input!D31)+(B28*Input!D32)+(B29*Input!D33)+(B30*Input!D34)+(B31*Input!D35)+(B32*Input!D36)+(B33*Input!D37)+(B34*Input!D38)+(B35*Input!D39)) -> 1.17825 | C36: =SUM((C24*Input!D28)+(C25*Input!D29)+(C26*Input!D30)+(C27*Input!D31)+(C28*Input!D32)+(C29*Input!D33)+(C30*Input!D34)+(C31*Input!D35)+(C32*Input!D36)+(C33*Input!D37)+(C34*Input!D38)+(C35*Input!D39)) -> 1.29825 | D36: =SUM((D24*Input!D28)+(D25*Input!D29)+(D26*Input!D30)+(D27*Input!D31)+(D28*Input!D32)+(D29*Input!D33)+(D30*Input!D34)+(D31*Input!D35)+(D32*Input!D36)+(D33*Input!D37)+(D34*Input!D38)+(D35*Input!D39)) -> 1.420975 | E36: =SUM((E24*Input!D28)+(E25*Input!D29)+(E26*Input!D30)+(E27*Input!D31)+(E28*Input!D32)+(E29*Input!D33)+(E30*Input!D34)+(E31*Input!D35)+(E32*Input!D36)+(E33*Input!D37)+(E34*Input!D38)+(E35*Input!D39)) -> 1.5337 | G36: =SUM(G24:G35) -> 362.5309312 | I36: $/head/day | J36: =SUM((J24*Input!D28)+(J25*Input!D29)+(J26*Input!D30)+(J27*Input!D31)+(J28*Input!D32)+(J29*Input!D33)+(J30*Input!D34)+(J31*Input!D35)+(J32*Input!D36)+(J33*Input!D37)+(J34*Input!D38)+(J35*Input!D39)) -> 1.131 | K36: =SUM((K24*Input!D28)+(K25*Input!D29)+(K26*Input!D30)+(K27*Input!D31)+(K28*Input!D32)+(K29*Input!D33)+(K30*Input!D34)+(K31*Input!D35)+(K32*Input!D36)+(K33*Input!D37)+(K34*Input!D38)+(K35*Input!D39)) -> 1.2446 | L36: =SUM((L24*Input!D28)+(L25*Input!D29)+(L26*Input!D30)+(L27*Input!D31)+(L28*Input!D32)+(L29*Input!D33)+(L30*Input!D34)+(L31*Input!D35)+(L32*Input!D36)+(L33*Input!D37)+(L34*Input!D38)+(L35*Input!D39)) -> 1.3782 | M36: =SUM((M24*Input!D28)+(M25*Input!D29)+(M26*Input!D30)+(M27*Input!D31)+(M28*Input!D32)+(M29*Input!D33)+(M30*Input!D34)+(M31*Input!D35)+(M32*Input!D36)+(M33*Input!D37)+(M34*Input!D38)+(M35*Input!D39)) -> 1.4918 | O36: =SUM(O24:O35) -> 262.28 | Q36: $/head/day | R36: =SUM((R24*Input!D28)+(R25*Input!D29)+(R26*Input!D30)+(R27*Input!D31)+(R28*Input!D32)+(R29*Input!D33)+(R30*Input!D34)+(R31*Input!D35)+(R32*Input!D36)+(R33*Input!D37)+(R34*Input!D38)+(R35*Input!D39)) -> 1.41991 | S36: =SUM((S24*Input!D28)+(S25*Input!D29)+(S26*Input!D30)+(S27*Input!D31)+(S28*Input!D32)+(S29*Input!D33)+(S30*Input!D34)+(S31*Input!D35)+(S32*Input!D36)+(S33*Input!D37)+(S34*Input!D38)+(S35*Input!D39)) -> 1.61028 | T36: =SUM((T24*Input!D28)+(T25*Input!D29)+(T26*Input!D30)+(T27*Input!D31)+(T28*Input!D32)+(T29*Input!D33)+(T30*Input!D34)+(T31*Input!D35)+(T32*Input!D36)+(T33*Input!D37)+(T34*Input!D38)+(T35*Input!D39)) -> 1.733575 | U36: =SUM((U24*Input!D28)+(U25*Input!D29)+(U26*Input!D30)+(U27*Input!D31)+(U28*Input!D32)+(U29*Input!D33)+(U30*Input!D34)+(U31*Input!D35)+(U32*Input!D36)+(U33*Input!D37)+(U34*Input!D38)+(U35*Input!D39)) -> 1.880055 | W36: =SUM(W24:W35) -> 265.7528
A38: Alfalfa Grass Hay Ration | I38: Alfalfa Grass Hay Ration | Q38: Alfalfa Grass Hay Ration
A39: Weight Range (lbs) | B39: 500 to 600 | C39: 600 to 700 | D39: 700-800 | E39: 800-900 | F39: Total lbs /steer | G39: Total Cost /steer | I39: Weight Range (lbs) | J39: 500 to 600 | K39: 600 to 700 | L39: 700-800 | M39: 800-900 | N39: Total lbs /steer | O39: Total Cost /steer | Q39: Weight Range (lbs) | R39: 500 to 600 | S39: 600 to 700 | T39: 700-800 | U39: 800-900 | V39: Total lbs /steer | W39: Total Cost /steer
A40: Feed Name | B40: As Fed Lbs/Head/Day | I40: Feed Name | J40: As Fed Lbs/Head/Day | Q40: Feed Name | R40: As Fed Lbs/Head/Day
A41: =Input!A28 -> Alfalfa Grass Hay | B41: 13.5 | C41: 15.2 | D41: 17.25 | E41: 18.5 | F41: =SUM(($C$1*B41)+(C41*$C$1)+(D41*$C$1)+(E41*$C$1)) -> 4302.0375 | G41: =SUM(F41*Input!D28) -> 258.12225 | I41: =Input!A28 -> Alfalfa Grass Hay | J41: 13 | K41: 15 | L41: 16.75 | M41: 18.5 | N41: =SUM(($K$1*J41)+(K41*$K$1)+(L41*$K$1)+(M41*$K$1)) -> 3162.5 | O41: =SUM(N41*Input!D28) -> 189.75 | Q41: =Input!A28 -> Alfalfa Grass Hay | R41: 11.25 | S41: 12.5 | T41: 14 | U41: 15 | V41: =SUM(($S$1*R41)+(S41*$S$1)+(T41*$S$1)+(U41*$S$1)) -> 2110 | W41: =SUM(V41*Input!D28) -> 126.6
A42: =Input!A29 -> Corn Silage | B42: 0 | C42: 0 | D42: 0 | E42: 0 | F42: 0 | G42: =SUM(F42*Input!D29) -> 0 | I42: =Input!A29 -> Corn Silage | J42: 0 | K42: 0 | L42: 0 | M42: 0 | N42: 0 | O42: =SUM(N42*Input!D29) -> 0 | Q42: =Input!A29 -> Corn Silage | R42: 0 | S42: 0 | T42: 0 | U42: 0 | V42: 0 | W42: =SUM(V42*Input!D29) -> 0
A43: =Input!A30 -> Barley Silage | B43: 0 | C43: 0 | D43: 0 | E43: 0 | F43: 0 | G43: =SUM(F43*Input!D30) -> 0 | I43: =Input!A30 -> Barley Silage | J43: 0 | K43: 0 | L43: 0 | M43: 0 | N43: 0 | O43: =SUM(N43*Input!D30) -> 0 | Q43: =Input!A30 -> Barley Silage | R43: 0 | S43: 0 | T43: 0 | U43: 0 | V43: 0 | W43: =SUM(V43*Input!D30) -> 0
A44: =Input!A31 -> Barley Grain | B44: 3 | C44: 3.5 | D44: 3.5 | E44: 4 | F44: 934.5 | G44: =SUM(F44*Input!D31) -> 87.843 | I44: =Input!A31 -> Barley Grain | J44: 4.5 | K44: 5 | L44: 5.5 | M44: 6 | N44: 1050 | O44: =SUM(N44*Input!D31) -> 98.7 | Q44: =Input!A31 -> Barley Grain | R44: 6.75 | S44: 7.8 | T44: 8.7 | U44: 9.7 | V44: 1318 | W44: =SUM(V44*Input!D31) -> 123.892
A45: =Input!A32 -> Greenfeed | B45: 0 | C45: 0 | D45: 0 | E45: 0 | F45: 0 | G45: =SUM(F45*Input!D32) -> 0 | I45: =Input!A32 -> Greenfeed | J45: 0 | K45: 0 | L45: 0 | M45: 0 | N45: 0 | O45: =SUM(N45*Input!D32) -> 0 | Q45: =Input!A32 -> Greenfeed | R45: 0 | S45: 0 | T45: 0 | U45: 0 | V45: 0 | W45: =SUM(V45*Input!D32) -> 0
A46: =Input!A33 -> Straw | B46: 0 | C46: 0 | D46: 0 | E46: 0 | F46: 0 | G46: =SUM(F46*Input!D33) -> 0 | I46: =Input!A33 -> Straw | J46: 0 | K46: 0 | L46: 0 | M46: 0 | N46: 0 | O46: =SUM(N46*Input!D33) -> 0 | Q46: =Input!A33 -> Straw | R46: 0 | S46: 0 | T46: 0 | U46: 0 | V46: 0 | W46: =SUM(V46*Input!D33) -> 0
A47: =Input!A34 -> 32-20% Feedlot Suppl. | B47: 0 | C47: 0 | D47: 0 | E47: 0 | F47: 0 | G47: =SUM(F47*Input!D34) -> 0 | I47: =Input!A34 -> 32-20% Feedlot Suppl. | J47: 0 | K47: 0 | L47: 0 | M47: 0 | N47: 0 | O47: =SUM(N47*Input!D34) -> 0 | Q47: =Input!A34 -> 32-20% Feedlot Suppl. | R47: 0 | S47: 0 | T47: 0 | U47: 0 | V47: 0 | W47: =SUM(V47*Input!D34) -> 0
A48: =Input!A35 -> DDGS Corn/Wheat | B48: 0 | C48: 0 | D48: 0 | E48: 0 | F48: 0 | G48: =SUM(F48*Input!D35) -> 0 | I48: =Input!A35 -> DDGS Corn/Wheat | J48: 0 | K48: 0 | L48: 0 | M48: 0 | N48: 0 | O48: =SUM(N48*Input!D35) -> 0 | Q48: =Input!A35 -> DDGS Corn/Wheat | R48: 0 | S48: 0 | T48: 0 | U48: 0 | V48: 0 | W48: =SUM(V48*Input!D35) -> 0
A49: =Input!A36 -> 1:1 Premix | B49: 0.25 | C49: 0.25 | D49: 0.28 | E49: 0.3 | F49: 72.09 | G49: =SUM(F49*Input!D36) -> 65.52981 | I49: =Input!A36 -> 1:1 Premix | J49: 0.25 | K49: 0.27 | L49: 0.3 | M49: 0.33 | N49: 57.5 | O49: =SUM(N49*Input!D36) -> 52.2675 | Q49: =Input!A36 -> 1:1 Premix | R49: 0.25 | S49: 0.27 | T49: 0.31 | U49: 0.33 | V49: 46.4 | W49: =SUM(V49*Input!D36) -> 42.1776
A50: =Input!A37 -> 2:1 Premix | B50: 0 | C50: 0 | D50: 0 | E50: 0 | F50: 0 | G50: =SUM(F50*Input!D37) -> 0 | I50: =Input!A37 -> 2:1 Premix | J50: 0 | K50: 0 | L50: 0 | M50: 0 | N50: 0 | O50: =SUM(N50*Input!D37) -> 0 | Q50: =Input!A37 -> 2:1 Premix | R50: 0 | S50: 0 | T50: 0 | U50: 0 | V50: 0 | W50: =SUM(V50*Input!D37) -> 0
A51: =Input!A38 -> Limestone | B51: 0 | C51: 0 | D51: 0 | E51: 0 | F51: 0 | G51: =SUM(F51*Input!D38) -> 0 | I51: =Input!A38 -> Limestone | J51: 0 | K51: 0 | L51: 0 | M51: 0 | N51: 0 | O51: =SUM(N51*Input!D38) -> 0 | Q51: =Input!A38 -> Limestone | R51: 0 | S51: 0 | T51: 0 | U51: 0 | V51: 0 | W51: =SUM(V51*Input!D38) -> 0
A52: =Input!A39 -> Other | B52: 0 | C52: 0 | D52: 0 | E52: 0 | F52: 0 | G52: =SUM(F52*Input!D39) -> 0 | I52: =Input!A39 -> Other | J52: 0 | K52: 0 | L52: 0 | M52: 0 | N52: 0 | O52: =SUM(N52*Input!D39) -> 0 | Q52: =Input!A39 -> Other | R52: 0 | S52: 0 | T52: 0 | U52: 0 | V52: 0 | W52: =SUM(V52*Input!D39) -> 0
A53: $/head/day | B53: =SUM((B41*Input!D28)+(B42*Input!D29)+(B43*Input!D30)+(B44*Input!D31)+(B45*Input!D32)+(B46*Input!D33)+(B47*Input!D34)+(B48*Input!D35)+(B49*Input!D36)+(B50*Input!D37)+(B51*Input!D38)+(B52*Input!D39)) -> 1.31925 | C53: =SUM((C41*Input!D28)+(C42*Input!D29)+(C43*Input!D30)+(C44*Input!D31)+(C45*Input!D32)+(C46*Input!D33)+(C47*Input!D34)+(C48*Input!D35)+(C49*Input!D36)+(C50*Input!D37)+(C51*Input!D38)+(C52*Input!D39)) -> 1.46825 | D53: =SUM((D41*Input!D28)+(D42*Input!D29)+(D43*Input!D30)+(D44*Input!D31)+(D45*Input!D32)+(D46*Input!D33)+(D47*Input!D34)+(D48*Input!D35)+(D49*Input!D36)+(D50*Input!D37)+(D51*Input!D38)+(D52*Input!D39)) -> 1.61852 | E53: =SUM((E41*Input!D28)+(E42*Input!D29)+(E43*Input!D30)+(E44*Input!D31)+(E45*Input!D32)+(E46*Input!D33)+(E47*Input!D34)+(E48*Input!D35)+(E49*Input!D36)+(E50*Input!D37)+(E51*Input!D38)+(E52*Input!D39)) -> 1.7587 | G53: =SUM(G41:G51) -> 411.49506 | I53: $/head/day | J53: =SUM((J41*Input!D28)+(J42*Input!D29)+(J43*Input!D30)+(J44*Input!D31)+(J45*Input!D32)+(J46*Input!D33)+(J47*Input!D34)+(J48*Input!D35)+(J49*Input!D36)+(J50*Input!D37)+(J51*Input!D38)+(J52*Input!D39)) -> 1.43025 | K53: =SUM((K41*Input!D28)+(K42*Input!D29)+(K43*Input!D30)+(K44*Input!D31)+(K45*Input!D32)+(K46*Input!D33)+(K47*Input!D34)+(K48*Input!D35)+(K49*Input!D36)+(K50*Input!D37)+(K51*Input!D38)+(K52*Input!D39)) -> 1.61543 | L53: =SUM((L41*Input!D28)+(L42*Input!D29)+(L43*Input!D30)+(L44*Input!D31)+(L45*Input!D32)+(L46*Input!D33)+(L47*Input!D34)+(L48*Input!D35)+(L49*Input!D36)+(L50*Input!D37)+(L51*Input!D38)+(L52*Input!D39)) -> 1.7947 | M53: =SUM((M41*Input!D28)+(M42*Input!D29)+(M43*Input!D30)+(M44*Input!D31)+(M45*Input!D32)+(M46*Input!D33)+(M47*Input!D34)+(M48*Input!D35)+(M49*Input!D36)+(M50*Input!D37)+(M51*Input!D38)+(M52*Input!D39)) -> 1.97397 | O53: =SUM(O41:O52) -> 340.7175 | Q53: $/head/day | R53: =SUM((R41*Input!D28)+(R42*Input!D29)+(R43*Input!D30)+(R44*Input!D31)+(R45*Input!D32)+(R46*Input!D33)+(R47*Input!D34)+(R48*Input!D35)+(R49*Input!D36)+(R50*Input!D37)+(R51*Input!D38)+(R52*Input!D39)) -> 1.53675 | S53: =SUM((S41*Input!D28)+(S42*Input!D29)+(S43*Input!D30)+(S44*Input!D31)+(S45*Input!D32)+(S46*Input!D33)+(S47*Input!D34)+(S48*Input!D35)+(S49*Input!D36)+(S50*Input!D37)+(S51*Input!D38)+(S52*Input!D39)) -> 1.72863 | T53: =SUM((T41*Input!D28)+(T42*Input!D29)+(T43*Input!D30)+(T44*Input!D31)+(T45*Input!D32)+(T46*Input!D33)+(T47*Input!D34)+(T48*Input!D35)+(T49*Input!D36)+(T50*Input!D37)+(T51*Input!D38)+(T52*Input!D39)) -> 1.93959 | U53: =SUM((U41*Input!D28)+(U42*Input!D29)+(U43*Input!D30)+(U44*Input!D31)+(U45*Input!D32)+(U46*Input!D33)+(U47*Input!D34)+(U48*Input!D35)+(U49*Input!D36)+(U50*Input!D37)+(U51*Input!D38)+(U52*Input!D39)) -> 2.11177 | W53: =SUM(W41:W52) -> 292.6696

Sheet Fixed
A1: Fixed Costs
A3: Buildings & Facilities | F3: Machinery & Equipment
B4: Total Investment ($/feeder) | D4: =ROUND((SUM(E24:E39)/(Input!D12)),0) -> 160 | G4: Total Investment ($/feeder) | I4: =ROUND((SUM(J24:J39)/(Input!D12)),0) -> 225 | L4: *HIDE*
B5: Residual Value (End of Useful Life) | D5: 0.1 | G5: Residual Value (End of Useful Life) | I5: 0.2 | L5: =(#REF!-#REF!)/(#REF!+#REF!) -> 
B6: Useful Life (years) | D6: 20 | G6: Useful Life (years) | I6: 10
B7: Owned Building Equity | D7: 0.85 | G7: Owned Machinery Equity | I7: 0.8
B8: =" Building Financed ("&TEXT((D4)*D8,"$#,###")&" per feeder)" -> Building Financed ($24 per feeder) | D8: =SUM(1-D7) -> 0.15 | G8: =" Machinery Financed ("&TEXT((I4)*I8,"$#,###")&" per feeder)" -> Machinery Financed ($45 per feeder) | I8: =SUM(1-I7) -> 0.2
B9: Building Opportunity Cost (Investment Rate) | D9: 0 | G9: Machinery Opportunity Cost (Investment Rate) | I9: 0
B10: Building & Water System Cost ($/feeder) | G10: Machinery & Equipment Cost ($/feeder)
B11: Finance Rate & Term | C11: 0.0625 | D11: 7 | E11: Years | G11: Finance Rate & Term | H11: 0.0625 | I11: 7 | J11: Years
B12: Principle & Interest Cost | D12: =-PMT(C11,D11,D4*D8,0) -> 4.337519772 | G12: Principle & Interest Cost | I12: =-PMT(H11,I11,I4*I8,0) -> 8.132849573
B13: Building Depreciation Cost | D13: =(D4-(D4*D5))/D6 -> 7.2 | G13: Machinery Depreciation Cost | I13: =(I4-(I4*I5))/I6 -> 18
B14: Owned Building Opportunity Cost | D14: =SUM(D4*D7)*(D9) -> 0 | G14: Owned Machinery Opportunity Cost | I14: =SUM(I4*I7)*(I9) -> 0
B15: Total Cost | D15: =SUM(D12:D14) -> 11.53751977 | G15: Total Cost | I15: =SUM(I12:I14) -> 26.13284957
A17: Total Principle & Interest Cost ($/feeder) | D17: =SUM(I12+D12) -> 12.47036935
A18: ="Total Principle & Interest Cost ("&Input!D12&" feeders)" -> Total Principle & Interest Cost (500 feeders) | D18: =D17*Input!D12 -> 6235.184673
A19: Total Fixed Investment | D19: =SUM(E24:E39)+SUM(J24:J39) -> 192600
T20: 0.0275
A21: Capital Value
C22: Market | D22: Cow-calf | H22: Market | I22: Cow-calf
A23: Buildings & Facilities | C23: Value | D23: Usage % | E23: Allocation | G23: Machinery & Equipment | H23: Value | I23: Usage % | J23: Allocation
B24: Windbreak Fence | C24: 6300 | D24: 1 | E24: =SUM(C24*D24) -> 6300 | G24: Miscellaneous Machinery | H24: 17500 | I24: 1 | J24: =SUM(H24*I24) -> 17500
B25: Pens | C25: 5300 | D25: 1 | E25: 5300 | G25: Tractor & Loader | H25: 175000 | I25: 0.3 | J25: 52500
B26: Handling Facilities | C26: 7500 | D26: 1 | E26: 7500 | G26: Bale Shredder | H26: 25000 | I26: 0.5 | J26: 12500
B27: Waterers | C27: 6000 | D27: 1 | E27: 6000 | G27: Tractor & Feed Wagon (silage) | H27: 60000 | I27: 0.5 | J27: 30000
B28: Gates | C28: 2000 | D28: 1 | E28: 2000 | H28: 0 | I28: 1 | J28: 0
B29: Feeders | C29: 1500 | D29: 1 | E29: 1500 | H29: 0 | I29: 1 | J29: 0
B30: Bunk Feeders | C30: 21000 | D30: 1 | E30: 21000 | H30: 0 | I30: 1 | J30: 0
B31: Well & Pressure System | C31: 8000 | D31: 1 | E31: 8000 | H31: 0 | I31: 1 | J31: 0
B32: Grain Bin | C32: 5000 | D32: 1 | E32: 5000 | H32: 0 | I32: 1 | J32: 0
B33: Landscaping | C33: 17500 | D33: 1 | E33: 17500 | H33: 0 | I33: 1 | J33: 0
C34: 0 | D34: 1 | E34: 0 | H34: 0 | I34: 1 | J34: 0
C35: 0 | D35: 1 | E35: 0 | H35: 0 | I35: 1 | J35: 0
C36: 0 | D36: 1 | E36: 0 | H36: 0 | I36: 1 | J36: 0
C37: 0 | D37: 1 | E37: 0 | H37: 0 | I37: 1 | J37: 0
C38: 0 | D38: 1 | E38: 0 | H38: 0 | I38: 1 | J38: 0
C39: 0 | D39: 0 | E39: 0 | H39: 0 | I39: 1 | J39: 0
E40: ="Total Inv. = $"&TEXT(SUM(E24:E39),"#,###")&" ($"&ROUND(SUM(E24:E39)/(Input!D12),0)&"/feeder)" -> Total Inv. = $80,100 ($160/feeder) | J40: ="Total Inv. = $"&TEXT(SUM(J24:J39),"#,###")&" ($"&ROUND(SUM(J24:J39)/(Input!D12),0)&"/feeder)" -> Total Inv. = $112,500 ($225/feeder)
B41: Buildings & Water - Target $/cow | C41: 350 | G41: Machinery - Target $/cow | H41: 750
B42: =IF(ROUND(SUM(E24:E39)/([1]Input!E13),0)<C41,"(Under Invested by",IF(ROUND(SUM(E24:E39)/([1]Input!E13),0)=C41,"(On Target","(Over Invested by")) -> (Under Invested by | C42: ="$"&TEXT(ABS((ROUND(SUM(E24:E39)/([1]Input!$E$13),2)-C41)*([1]Input!$E$13)),"#,###")&")" -> $24,900) | G42: =IF(ROUND(SUM(J24:J39)/([1]Input!E13),0)<H41,"(Under Invested by",IF(ROUND(SUM(J24:J39)/([1]Input!E13),0)=H41,"(On Target","(Over Invested by")) -> (Under Invested by | H42: ="$"&TEXT(ABS((ROUND(SUM(J24:J39)/([1]Input!E13),2)-H41)*([1]Input!E13)),"#,###")&")" -> $112,500)

Sheet Breakeven
A2: Breakeven Calculations
A4: Cost per lb of gain sold (shrunk weight)
B5: Feed Costs | F5: =Summary!F18 -> 265.58 | H5: feed cost
E6: ÷ | F6: =ROUND((Input!$D$16-(Input!$D$16*Input!$D$20/100))-(Input!$D$14-(Input!$D$14*Input!$D$21/100)),0) -> 373 | H6: lbs gained weight
E7: = | F7: =F5/F6 -> 0.7120107239 | H7: /lb (gain sold)
B9: Operating Costs | F9: =Summary!F32 -> 3981.24 | H9: operating costs
E10: - | F10: =Input!D64 -> 3400 | H10: feeder cost
E11: ÷ | F11: =ROUND((Input!$D$16-(Input!$D$16*Input!$D$20/100))-(Input!$D$14-(Input!$D$14*Input!$D$21/100)),0) -> 373 | H11: lbs gained weight
E12: = | F12: =(F9-F10)/F11 -> 1.558284182 | H12: /lb (gain sold)
B14: Operating & Labour Costs | F14: =Summary!F32+Summary!F39 -> 4009.24 | H14: operating costs
E15: - | F15: =F10 -> 3400 | H15: feeder cost
E16: ÷ | F16: =F11 -> 373 | H16: lbs gained weight
E17: = | F17: =(F14-F15)/F16 -> 1.633351206 | H17: /lb (gain sold)
B19: Operating & Fixed | F19: =Summary!F37 -> 4018.910369 | H19: oper. & fixed costs
E20: - | F20: =Input!D64 -> 3400 | H20: feeder cost
E21: ÷ | F21: =ROUND((Input!$D$16-(Input!$D$16*Input!$D$20/100))-(Input!$D$14-(Input!$D$14*Input!$D$21/100)),0) -> 373 | H21: lbs gained weight
E22: = | F22: =(F19-F20)/F21 -> 1.65927713 | H22: /lb (gain sold)
B24: Total Costs | F24: =Summary!F40 -> 4046.910369 | H24: total costs
E25: - | F25: =Input!D64 -> 3400 | H25: feeder cost
E26: ÷ | F26: =ROUND((Input!$D$16-(Input!$D$16*Input!$D$20/100))-(Input!$D$14-(Input!$D$14*Input!$D$21/100)),0) -> 373 | H26: lbs gained weight
E27: = | F27: =(F24-F25)/F26 -> 1.734344154 | H27: /lb (gain sold)
A28: Breakeven selling price (shrunk weight)
B29: Operating Costs | F29: =Summary!F32 -> 3981.24 | H29: operating costs
E30: ÷ | F30: =Input!$D$16-(Input!$D$16*Input!$D$20/100) -> 873 | H30: lbs shrunk weight
E31: = | F31: =F29/F30 -> 4.560412371 | H31: /lb
B33: Operating & Labour Costs | F33: =Summary!F32+Summary!F39 -> 4009.24 | H33: operating & labour
E34: ÷ | F34: =F30 -> 873 | H34: lbs shrunk weight
E35: = | F35: =F33/F34 -> 4.592485682 | H35: /lb
B37: Operating & Fixed | F37: =Summary!F37 -> 4018.910369 | H37: oper. & fixed costs
E38: ÷ | F38: =Input!$D$16-(Input!$D$16*Input!$D$20/100) -> 873 | H38: lbs shrunk weight
E39: = | F39: =F37/F38 -> 4.603562851 | H39: /lb
B41: Total Costs | F41: =Summary!F40 -> 4046.910369 | H41: total costs
E42: ÷ | F42: =Input!$D$16-(Input!$D$16*Input!$D$20/100) -> 873 | H42: lbs shrunk weight
E43: = | F43: =F41/F42 -> 4.635636162 | H43: /lb
A45: Breakeven purchase price (shrunk weight)
B46: Operating Costs | F46: =Input!$D$16-(Input!$D$16*Input!$D$20/100) -> 873 | H46: lbs shrunk weight
E47: x | F47: =Input!$D$17 -> 455 | H47: $/cwt selling price
E48: = | F48: =F46*F47/100 -> 3972.15 | H48: income
E49: - | F49: =Summary!F32-Input!D64 -> 581.24 | H49: operating less feeder cost
E50: ÷ | F50: =Input!$D$14 -> 500 | H50: lbs purchase weight
E51: = | F51: =(F48-F49)/F50 -> 6.78182 | H51: /lb
B53: Operating & Labour Costs | F53: =F46 -> 873 | H53: lbs shrunk weight
E54: x | F54: =F47 -> 455 | H54: $/cwt selling price
E55: = | F55: =F48 -> 3972.15 | H55: income
E56: - | F56: =(Summary!F32+Summary!F39)-Input!D64 -> 609.24 | H56: operating less feeder cost
E57: ÷ | F57: =F50 -> 500 | H57: lbs purchase weight
E58: = | F58: =(F55-F56)/F57 -> 6.72582 | H58: /lb
B60: Operating & Fixed | F60: =Input!$D$16-(Input!$D$16*Input!$D$20/100) -> 873 | H60: lbs shrunk weight
E61: x | F61: =Input!$D$17 -> 455 | H61: $/cwt selling price
E62: = | F62: =F60*F61/100 -> 3972.15 | H62: income
E63: - | F63: =Summary!F37-Input!D64 -> 618.9103693 | H63: op. & fixed less feeder cost
E64: ÷ | F64: =Input!$D$14 -> 500 | H64: lbs purchase weight
E65: = | F65: =(F62-F63)/F64 -> 6.706479261 | H65: /lb
B67: Total Costs | F67: =Input!$D$16-(Input!$D$16*Input!$D$20/100) -> 873 | H67: lbs shrunk weight
E68: x | F68: =Input!$D$17 -> 455 | H68: $/cwt selling price
E69: = | F69: =F67*F68/100 -> 3972.15 | H69: income
E70: - | F70: =Summary!F40-Input!D64 -> 646.9103693 | H70: total less feeder cost
E71: ÷ | F71: =Input!$D$14 -> 500 | H71: lbs purchase weight
E72: = | F72: =(F69-F70)/F71 -> 6.650479261 | H72: /lb
A74: Profitability and Breakeven Analysis:
A75: ="Gross Revenue = Shrunk weight (lbs) x $/lb price (eg. "&F46&" x $"&TEXT(F47/100,"0.00")&"/lb = $"&TEXT(F48,"0.00")&")" -> Gross Revenue = Shrunk weight (lbs) x $/lb price (eg. 873 x $4.55/lb = $3972.15)
A76: ="Return on Investment (ROI) = (Gross Revenue - Total Cost) / Total Cost (eg. ($"&TEXT(Summary!F45,"0.00")&" - $"&TEXT(Summary!F40,"0.00")&") / $"&TEXT(Summary!F40,"0.00")&" = "&TEXT(100*Summary!F65,"0.0")&"%" -> Return on Investment (ROI) = (Gross Revenue - Total Cost) / Total Cost (eg. ($3972.15 - $4046.91) / $4046.91 = -1.8%
A78: ="Return on Asset (ROA) = (Margin Over Operating - Labour - Building Depreciation - Machinery Depreciation) / (Building, Machinery & Equipment Investment / Herd Size) (eg. ($"&TEXT(Summary!H59,"0.00")&" - $"&TEXT(Summary!F39,"0.00")&" - $"&TEXT(Fixed!D13,"0.00")&" - $"&TEXT(Fixed!I13,"0.00")&") / ($"&TEXT(Fixed!D19,"#,###")&" / "&Input!D12&") = "&TEXT(100*Summary!F66,"0.0")&"%" -> Return on Asset (ROA) = (Margin Over Operating - Labour - Building Depreciation - Machinery Depreciation) / (Building, Machinery & Equipment Investment / Herd Size) (eg. ($-9.09 - $28.00 - $7.20 - $18.00) / ($192,600 / 500) = -16.2%
A81: ="Yardage Cost Per Feeder Per Day = ($"&TEXT(Summary!F21,"0.00")&" straw + $"&TEXT(Summary!F23,"0.00")&" fuel & repair + $"&TEXT(Input!D163,"0.00")&" building insurance + $"&TEXT(Summary!F24,"0.00")&" utilities + $"&TEXT(Summary!F27,"0.00")&" manure removal + $"&TEXT(Fixed!D13,"0.00")&" building depreciation+ $"&TEXT(Fixed!I13,"0.00")&" machinery depreciation + $"&TEXT(Fixed!D12,"0.00")&" building investment + $"&TEXT(Fixed!I12,"0.00")&" machinery investment + $"&TEXT((((SUM(Summary!F21:F29)*(Input!D193/100)*(Input!B50/365)))),"0.00")&" operating interest + $"&TEXT(Summary!F28,"0.00")&" misc. + $"&TEXT(Summary!F39,"0.00")&" labour) ÷ "&Input!B50&" days = $"&TEXT(Summary!F64,"0.000") -> Yardage Cost Per Feeder Per Day = ($22.40 straw + $10.06 fuel & repair + $1.54 building insurance + $3.45 utilities + $18.83 manure removal + $7.20 building depreciation+ $18.00 machinery depreciation + $4.34 building investment + $8.13 machinery investment + $5.70 operating interest + $1.20 misc. + $28.00 labour) ÷ 160 days = $0.805
J85: September, 2025

Sheet Facilities
C1: Backgrounding Feedlot Facilities

Sheet Chart data (HIDE) (hidden)
A1: 2025 Beef Background Calves - Total Production Costs (cost/feeder)
A2: Feed Cost | B2: =Summary!F18 -> 265.58 | C2: =SUM(B2/$B$8) -> 0.06562537239
A3: Feeder Cost | B3: =Summary!F20 -> 3415.25 | C3: 0.8439154042
A4: Other Operating Cost | B4: =Summary!F32-Summary!F20-Summary!F18 -> 300.41 | C4: 0.07423193809
A5: Fixed Cost - Buildings | B5: =Summary!F34 -> 11.53751977 | C5: 0.00285094522
A6: Fixed Cost - Machinery | B6: =Summary!F35 -> 26.13284957 | C6: 0.006457481681
A7: Labour | B7: =SUM(Summary!F39) -> 28 | C7: 0.006918858449
B8: =SUM(B2:B7) -> 4046.910369
A10: 2025 Beef Background Calves - Other Operating Costs (cost/feeder)
A11: Straw | B11: =Summary!F21 -> 22.4
A12: Veterinary Medicine & Supplies | B12: =Summary!F22 -> 26.24
A13: Fuel, Maintenance & Repairs | B13: =Summary!F23 -> 10.05938
A14: Utilities | B14: =Summary!F24 -> 3.4548624
A15: Feeder Selling Cost | B15: =Summary!F25 -> 36.95
A16: Insurance | B16: =Summary!F26 -> 1.64
A17: Manure Removal | B17: =Summary!F27 -> 18.83448
A18: Barn & Office Supplies | B18: =Summary!F28 -> 1.2
A19: Death Loss | B19: =Summary!F29 -> 71.8
A20: Operating Interest | B20: =Summary!F31 -> 107.83
B21: =SUM(B11:B20) -> 300.4087224
A24: ="2025 Beef Backgrounding - Costs Not Covered ("&Input!D16&" lb. steers)" -> 2025 Beef Backgrounding - Costs Not Covered (900 lb. steers)
A25: Calf Price | B25: Gross revenue | C25: ="Operating Costs = $"&ROUND(Summary!F32,0) -> Operating Costs = $3981 | D25: ="Fixed Costs = $"&ROUND(Summary!F36,0) -> Fixed Costs = $38 | E25: ="Labour Cost = $"&ROUND(Summary!F39,0) -> Labour Cost = $28 | F25: Total | I25: =C25 -> Operating Costs = $3981 | J25: =D25 -> Fixed Costs = $38 | K25: =A25 -> Calf Price
A27: =SUM(A28+$A$40) -> 545 | B27: =SUM((A27/100)*(Input!$D$57+Input!$D$14)) -> 4757.85 | C27: =IF(Summary!$F$32-B27<0,0,SUM(Summary!$F$32-B27)) -> 0 | D27: =IF(Summary!$F$32+Summary!$F$36-B27<0,0,SUM(Summary!$F$32+Summary!$F$36-B27-C27)) -> 0 | E27: =IF(Summary!$F$32+Summary!$F$36+Summary!$F$39-B27<0,0,SUM(Summary!$F$32+Summary!$F$36+Summary!$F$39-B27-C27-D27)) -> 0 | F27: =SUM(C27:E27) -> 0 | I27: =C27 -> 0 | J27: 0 | K27: =A27 -> 545 | M27: ="Market prices of $"&ROUND(Summary!H53,0)&"/cwt and lower do not cover both operating and fixed costs. This can indicate the potential need for LPI coverage and is an important step in Risk Management Planning." -> Market prices of $460/cwt and lower do not cover both operating and fixed costs. This can indicate the potential need for LPI coverage and is an important step in Risk Management Planning.
A28: =SUM(A29+$A$40) -> 495 | B28: =SUM((A28/100)*(Input!$D$57+Input!$D$14)) -> 4321.35 | C28: =IF(Summary!$F$32-B28<0,0,SUM(Summary!$F$32-B28)) -> 0 | D28: =IF(Summary!$F$32+Summary!$F$36-B28<0,0,SUM(Summary!$F$32+Summary!$F$36-B28-C28)) -> 0 | E28: =IF(Summary!$F$32+Summary!$F$36+Summary!$F$39-B28<0,0,SUM(Summary!$F$32+Summary!$F$36+Summary!$F$39-B28-C28-D28)) -> 0 | F28: 0 | I28: 0 | J28: 0 | K28: 495
A29: =ROUND(Input!D17+A41,0) -> 445 | B29: =SUM((A29/100)*(Input!$D$57+Input!$D$14)) -> 3884.85 | C29: =IF(Summary!$F$32-B29<0,0,SUM(Summary!$F$32-B29)) -> 96.39 | D29: =IF(Summary!$F$32+Summary!$F$36-B29<0,0,SUM(Summary!$F$32+Summary!$F$36-B29-C29)) -> 37.67036935 | E29: =IF(Summary!$F$32+Summary!$F$36+Summary!$F$39-B29<0,0,SUM(Summary!$F$32+Summary!$F$36+Summary!$F$39-B29-C29-D29)) -> 28 | F29: 162.0603693 | I29: 96.39 | J29: 37.67036935 | K29: 445
A30: =SUM(A29-$A$40) -> 395 | B30: =SUM((A30/100)*(Input!$D$57+Input!$D$14)) -> 3448.35 | C30: =IF(Summary!$F$32-B30<0,0,SUM(Summary!$F$32-B30)) -> 532.89 | D30: =IF(Summary!$F$32+Summary!$F$36-B30<0,0,SUM(Summary!$F$32+Summary!$F$36-B30-C30)) -> 37.67036935 | E30: =IF(Summary!$F$32+Summary!$F$36+Summary!$F$39-B30<0,0,SUM(Summary!$F$32+Summary!$F$36+Summary!$F$39-B30-C30-D30)) -> 28 | F30: 598.5603693 | I30: 532.89 | J30: 37.67036935 | K30: 395
A31: =SUM(A30-$A$40) -> 345 | B31: =SUM((A31/100)*(Input!$D$57+Input!$D$14)) -> 3011.85 | C31: =IF(Summary!$F$32-B31<0,0,SUM(Summary!$F$32-B31)) -> 969.39 | D31: =IF(Summary!$F$32+Summary!$F$36-B31<0,0,SUM(Summary!$F$32+Summary!$F$36-B31-C31)) -> 37.67036935 | E31: =IF(Summary!$F$32+Summary!$F$36+Summary!$F$39-B31<0,0,SUM(Summary!$F$32+Summary!$F$36+Summary!$F$39-B31-C31-D31)) -> 28 | F31: 1035.060369 | I31: 969.39 | J31: 37.67036935 | K31: 345
A32: 295 | B32: =SUM((A32/100)*(Input!$D$57+Input!$D$14)) -> 2575.35 | C32: =IF(Summary!$F$32-B32<0,0,SUM(Summary!$F$32-B32)) -> 1405.89 | D32: =IF(Summary!$F$32+Summary!$F$36-B32<0,0,SUM(Summary!$F$32+Summary!$F$36-B32-C32)) -> 37.67036935 | E32: =IF(Summary!$F$32+Summary!$F$36+Summary!$F$39-B32<0,0,SUM(Summary!$F$32+Summary!$F$36+Summary!$F$39-B32-C32-D32)) -> 28 | F32: 1471.560369 | I32: 1405.89 | J32: 37.67036935 | K32: 295
A33: 245 | B33: =SUM((A33/100)*(Input!$D$57+Input!$D$14)) -> 2138.85 | C33: =IF(Summary!$F$32-B33<0,0,SUM(Summary!$F$32-B33)) -> 1842.39 | D33: =IF(Summary!$F$32+Summary!$F$36-B33<0,0,SUM(Summary!$F$32+Summary!$F$36-B33-C33)) -> 37.67036935 | E33: =IF(Summary!$F$32+Summary!$F$36+Summary!$F$39-B33<0,0,SUM(Summary!$F$32+Summary!$F$36+Summary!$F$39-B33-C33-D33)) -> 28 | F33: 1908.060369 | I33: 1842.39 | J33: 37.67036935 | K33: 245
A34: 195 | B34: =SUM((A34/100)*(Input!$D$57+Input!$D$14)) -> 1702.35 | C34: =IF(Summary!$F$32-B34<0,0,SUM(Summary!$F$32-B34)) -> 2278.89 | D34: =IF(Summary!$F$32+Summary!$F$36-B34<0,0,SUM(Summary!$F$32+Summary!$F$36-B34-C34)) -> 37.67036935 | E34: =IF(Summary!$F$32+Summary!$F$36+Summary!$F$39-B34<0,0,SUM(Summary!$F$32+Summary!$F$36+Summary!$F$39-B34-C34-D34)) -> 28 | F34: 2344.560369 | I34: 2278.89 | J34: 37.67036935 | K34: 195
A35: 145 | B35: =SUM((A35/100)*(Input!$D$57+Input!$D$14)) -> 1265.85 | C35: =IF(Summary!$F$32-B35<0,0,SUM(Summary!$F$32-B35)) -> 2715.39 | D35: =IF(Summary!$F$32+Summary!$F$36-B35<0,0,SUM(Summary!$F$32+Summary!$F$36-B35-C35)) -> 37.67036935 | E35: =IF(Summary!$F$32+Summary!$F$36+Summary!$F$39-B35<0,0,SUM(Summary!$F$32+Summary!$F$36+Summary!$F$39-B35-C35-D35)) -> 28 | F35: 2781.060369 | I35: 2715.39 | J35: 37.67036935 | K35: 145
A36: 95 | B36: =SUM((A36/100)*(Input!$D$57+Input!$D$14)) -> 829.35 | C36: =IF(Summary!$F$32-B36<0,0,SUM(Summary!$F$32-B36)) -> 3151.89 | D36: =IF(Summary!$F$32+Summary!$F$36-B36<0,0,SUM(Summary!$F$32+Summary!$F$36-B36-C36)) -> 37.67036935 | E36: =IF(Summary!$F$32+Summary!$F$36+Summary!$F$39-B36<0,0,SUM(Summary!$F$32+Summary!$F$36+Summary!$F$39-B36-C36-D36)) -> 28 | F36: 3217.560369 | I36: 3151.89 | J36: 37.67036935 | K36: 95
A37: 45 | B37: =SUM((A37/100)*(Input!$D$57+Input!$D$14)) -> 392.85 | C37: =IF(Summary!$F$32-B37<0,0,SUM(Summary!$F$32-B37)) -> 3588.39 | D37: =IF(Summary!$F$32+Summary!$F$36-B37<0,0,SUM(Summary!$F$32+Summary!$F$36-B37-C37)) -> 37.67036935 | E37: =IF(Summary!$F$32+Summary!$F$36+Summary!$F$39-B37<0,0,SUM(Summary!$F$32+Summary!$F$36+Summary!$F$39-B37-C37-D37)) -> 28 | F37: 3654.060369 | I37: 3588.39 | J37: 37.67036935 | K37: 45
A38: -5 | B38: =SUM((A38/100)*(Input!$D$57+Input!$D$14)) -> -43.65 | C38: =IF(Summary!$F$32-B38<0,0,SUM(Summary!$F$32-B38)) -> 4024.89 | D38: =IF(Summary!$F$32+Summary!$F$36-B38<0,0,SUM(Summary!$F$32+Summary!$F$36-B38-C38)) -> 37.67036935 | E38: =IF(Summary!$F$32+Summary!$F$36+Summary!$F$39-B38<0,0,SUM(Summary!$F$32+Summary!$F$36+Summary!$F$39-B38-C38-D38)) -> 28 | F38: 4090.560369 | I38: 4024.89 | J38: 37.67036935 | K38: -5
A40: 50 | B40: price change
A41: -10 | B41: initial mod.

Sheet More...Breakeven (HIDE) (hidden)
A1: Estimated Breakeven Canadian Dollar & US Futures Price Analysis*
A2: Feeder Selling Price (WLPIP insured value) | F2: =Input!D17 -> 455 | G2: /cwt
A3: Estimated Feeder Cattle Basis (5 yr. Avg.) | F3: 19.43 | G3: /cwt
A4: Canadian Dollar | F4: 0.755 | G4: /USD
A5: Estimated US Futures | F5: 123 | G5: /cwt
F7: Breakeven CDN | I7: Breakeven US
F8: =" Dollar @ $"&F5&"/cwt." -> Dollar @ $123/cwt. | I8: =" Futures Price" -> Futures Price
F9: ="Est. US Futures Price" -> Est. US Futures Price | I9: ="@ $"&TEXT(F4,"#.####")&" CDN Dollar." -> @ $.755 CDN Dollar.
A10: Operating Costs | F10: =F26 -> 0.258690727 | I10: =F64 -> 358.980784
A11: Operating Costs & Labour | F11: =F36 -> 0.2569573994 | I11: =F71 -> 361.402319
A12: Operating & Fixed Costs | F12: =F46 -> 0.2563641434 | I12: =F78 -> 362.2386453
A13: Total Costs | F13: =F56 -> 0.254661751 | I13: =F85 -> 364.6601802
A15: Breakeven Calculation Worksheet
A17: Breakeven Canadian Dollar (shrunk weight)
B18: Operating Costs | F18: =F5 -> 123 | H18: Estimated US Futures
E19: ÷
F20: =Summary!F32 -> 3981.24 | H20: operating costs
E21: ÷ | F21: =Input!$D$16-(Input!$D$16*Input!$D$20/100) -> 873 | H21: lbs shrunk weight
E22: x | F22: 100 | H22: cwt
E23: + | F23: =F3 -> 19.43 | H23: basis
E24: = | F24: =SUM((F20/F21)*F22)+F23 -> 475.4712371 | H24: /cwt cost
E26: = | F26: =SUM(F18/F24) -> 0.258690727 | H26: /USD
B28: Operating & Labour Costs | F28: =F5 -> 123 | H28: Estimated US Futures
E29: ÷
F30: =Summary!F32+Summary!F39 -> 4009.24 | H30: operating & labour
E31: ÷ | F31: =Input!$D$16-(Input!$D$16*Input!$D$20/100) -> 873 | H31: lbs shrunk weight
E32: x | F32: 100 | H32: cwt
E33: + | F33: =F3 -> 19.43 | H33: basis
E34: = | F34: =SUM((F30/F31)*F32)+F33 -> 478.6785682 | H34: /cwt cost
E36: = | F36: =SUM(F28/F34) -> 0.2569573994 | H36: /USD
B38: Operating & Fixed | F38: =F5 -> 123 | H38: Estimated US Futures
E39: ÷
F40: =Summary!F37 -> 4018.910369 | H40: oper. & fixed costs
E41: ÷ | F41: =Input!$D$16-(Input!$D$16*Input!$D$20/100) -> 873 | H41: lbs shrunk weight
E42: x | F42: 100 | H42: cwt
E43: + | F43: =F23 -> 19.43 | H43: basis
E44: = | F44: =SUM((F40/F41)*F42)+F43 -> 479.7862851 | H44: /cwt cost
E46: = | F46: =SUM(F38/F44) -> 0.2563641434 | H46: /USD
B48: Total Costs | F48: =F5 -> 123 | H48: Estimated US Futures
E49: ÷
F50: =Summary!F40 -> 4046.910369 | H50: total costs
E51: ÷ | F51: =Input!$D$16-(Input!$D$16*Input!$D$20/100) -> 873 | H51: lbs shrunk weight
E52: x | F52: 100 | H52: cwt
E53: + | F53: =F33 -> 19.43 | H53: basis
E54: = | F54: =SUM((F50/F51)*F52)+F53 -> 482.9936162 | H54: /cwt cost
E56: = | F56: =SUM(F48/F54) -> 0.254661751 | H56: /USD
A58: Breakeven US Futures (shrunk weight)
B59: Operating Costs | F59: =Summary!F32 -> 3981.24 | H59: operating costs
E60: ÷ | F60: =Input!$D$16-(Input!$D$16*Input!$D$20/100) -> 873 | H60: lbs shrunk weight
E61: x | F61: 100 | H61: cwt
E62: + | F62: =F3 -> 19.43 | H62: basis
E63: x | F63: =F4 -> 0.755 | H63: CDN Dollar value
E64: = | F64: =SUM(((F59/F60)*F61)+F62)*F63 -> 358.980784 | H64: /cwt (USD)
B66: Operating & Labour Costs | F66: =Summary!F32+Summary!F39 -> 4009.24 | H66: operating & labour
E67: ÷ | F67: =Input!$D$16-(Input!$D$16*Input!$D$20/100) -> 873 | H67: lbs shrunk weight
E68: x | F68: 100 | H68: cwt
E69: + | F69: =F3 -> 19.43 | H69: basis
E70: x | F70: =F4 -> 0.755 | H70: CDN Dollar value
E71: = | F71: =SUM(((F66/F67)*F68)+F69)*F70 -> 361.402319 | H71: /cwt (USD)
B73: Operating & Fixed | F73: =Summary!F37 -> 4018.910369 | H73: oper. & fixed costs
E74: ÷ | F74: =Input!$D$16-(Input!$D$16*Input!$D$20/100) -> 873 | H74: lbs shrunk weight
E75: x | F75: 100 | H75: cwt
E76: + | F76: =F3 -> 19.43 | H76: basis
E77: x | F77: =F4 -> 0.755 | H77: CDN Dollar value
E78: = | F78: =SUM(((F73/F74)*F75)+F76)*F77 -> 362.2386453 | H78: /cwt (USD)
B80: Total Costs | F80: =Summary!F40 -> 4046.910369 | H80: oper. & fixed costs
E81: ÷ | F81: =Input!$D$16-(Input!$D$16*Input!$D$20/100) -> 873 | H81: lbs shrunk weight
E82: x | F82: 100 | H82: cwt
E83: + | F83: =F3 -> 19.43 | H83: basis
E84: x | F84: =F4 -> 0.755 | H84: CDN Dollar value
E85: = | F85: =SUM(((F80/F81)*F82)+F83)*F84 -> 364.6601802 | H85: /cwt (USD)
A87: Created and maintained by | J87: September, 2016
A88: For more information, contact your local
A89: Benjamin Hamm | E89: Roy Arnott
A90: Farm Management Specialist | E90: Farm Management Specialist
